{"text_format":"1","workbook":"xlsx","n_sheets":13,"sheets":["Acceuil","Budget","CC","CA","CV","CP","Cadres de Concertation","Tutelle","Marchés","Services Délégués","Autres données","Récapitulatif","Indicateurs"],"not_rendered":{"charts":0,"images":2,"macros":1,"external_links":0,"defined_names":0,"comments":0,"pivot_tables":0},"unopened":[],"bounds":{"document_bytes":16777216,"sheet_cells":100000,"rows_first":2000,"rows_last":500,"rows_between":2000,"halvings":0,"cell_chars":16384,"cell_head_chars":4096},"cells_cut":0,"cells_raw":0,"read":"whole","date_system":"1900"}

{"sheet":"Acceuil","index":0,"n_rows":23,"n_cols":16,"rows_kept":23,"cut":false,"hidden":false,"merged":[[6,4,6,18],[7,4,7,18],[9,4,9,18],[16,4,16,18]]}
[]
[]
[]
[]
[]
[]
[null,null,null,null,"COMITE INTERMINISTERIEL DE PILOTAGE DE LA POLITIQUE NATIONALE DE DECENTRALISATION ET DE DECONCENTRATION \n(CIP-PONADEC)"]
[null,null,null,null,"SECRETARIAT PERMANENT"]
[]
[null,null,null,null,"Calcul de l'Indice de bonne Gouvernance Locale (IGL)"]
[]
[null,null,null,null,null,"Département ","LITTORAL",null,"Commune ","COTONOU",null,null,null,null,"Année : ",2019]
[]
[]
[]
[]
[null,null,null,null,"Informations à saisir par catégorie"]
[]
[null,null,null,null,null,null,"Budget",null,null,null,null,"Cadres de Concertation"]
[null,null,null,null,null,null,"Conseil Communal",null,null,null,null,"Tutelle"]
[null,null,null,null,null,null,"Conseil d'Arrondissement",null,null,null,null,"Marchés"]
[null,null,null,null,null,null,"Conseil de Village",null,null,null,null,"Services délégués"]
[null,null,null,null,null,null,"Commissions Permanentes",null,null,null,null,"Autres données"]

{"sheet":"Budget","index":1,"n_rows":5,"n_cols":14,"rows_kept":5,"cut":false,"hidden":false,"merged":[[1,0,1,2],[1,3,1,9],[1,10,1,13],[2,3,2,5],[2,0,3,0],[2,1,3,1],[2,2,3,2],[2,6,3,6],[2,7,3,7],[2,8,3,8],[2,9,3,9],[2,10,3,10],[2,11,3,11],[2,12,3,12],[2,13,3,13]]}
["Retour à l'accueil"]
["Prévision",null,null,"Réalisation",null,null,null,null,null,null,"Autres données financieres"]
["Montant du budget ","Recette fiscales","PAI","Dépenses d'investissement",null,null,"Dépenses totales de fonctionnement","Dépenses d'entretien des équipements et ouvrages","Recettes fiscales ","PAI ","Montant des ressources propres de l'année 2018","Montant des ressources propres de l'année 2019","Montant des cotisations versées à échéance (Intercommunalité et Association de communes)","Montant des cotisations dues à échéance (Intercommunalité et Association de communes)"]
[null,null,null,"Ressources propres (Auto financement)","Investissement provenant de la coopération décentralisée","Autres ressources"]
[25919045527,10868400000,10549668054,3454094982,0,544678498,10028682127,322069313,11275080002,5321560706,13526674006,12498174371,20345699,32000000]

{"sheet":"CC","index":2,"n_rows":9,"n_cols":9,"rows_kept":9,"cut":false,"hidden":false,"merged":[[0,0,0,5],[1,0,1,5],[2,0,2,2],[2,4,3,5],[3,0,3,2]]}
["Retour à l'accueil"]
["Tenue des Sessions ordinaires "]
["Nombre de réunions de municipalité tenues",null,null,7]
["Nombre d'élus du Conseil Communal",null,null,49]
["Sessions","Nombre d'élus présents","Date début session","Date fin session","Date affichage relevé session","Production du rapport d'activités du Maire ",null,"dif","delai"]
["Session N°1",45,"2019-03-26","2019-03-28","2019-03-28","OUI",null,{"$f":"IF(OR(D6=\"\",E6=\"\"),-1,DATEDIF(D6,E6,\"d\"))","v":0},{"$f":"IF(OR(H6<0,H6>8),0,1)","v":1}]
["Session N°2",43,"2019-06-26","2019-06-28","2019-06-28","OUI",null,{"$f":"IF(OR(D7=\"\",E7=\"\"),-1,DATEDIF(D7,E7,\"d\"))","v":0},{"$f":"IF(OR(H7<0,H7>8),0,1)","v":1}]
["Session N°3",40,"2019-09-25","2019-09-27","2019-09-27","OUI",null,{"$f":"IF(OR(D8=\"\",E8=\"\"),-1,DATEDIF(D8,E8,\"d\"))","v":0},{"$f":"IF(OR(H8<0,H8>8),0,1)","v":1}]
["Session N°4",41,"2019-11-26","2019-11-28","2019-11-28","OUI",null,{"$f":"IF(OR(D9=\"\",E9=\"\"),-1,DATEDIF(D9,E9,\"d\"))","v":0},{"$f":"IF(OR(H9<0,H9>8),0,1)","v":1}]

{"sheet":"CA","index":3,"n_rows":15,"n_cols":2,"rows_kept":15,"cut":false,"hidden":false,"merged":[[0,0,0,1]]}
["Retour à l'accueil"]
["Arrondissements","Nombre de sessions de conseils d’arrondissement tenues"]
["1ER ARRONDISSEMENT",16]
["2EME ARRONDISSEMENT",13]
["3EME ARRONDISSEMENT",12]
["4EME ARRONDISSEMENT",11]
["5EME ARRONDISSEMENT",8]
["6EME ARRONDISSEMENT",7]
["7EME ARRONDISSEMENT",13]
["8EME ARRONDISSEMENT",15]
["9EME ARRONDISSEMENT",14]
["10EME ARRONDISSEMENT",11]
["11EME ARRONDISSEMENT",13]
["12EME ARRONDISSEMENT",10]
["13EME ARRONDISSEMENT",15]

{"sheet":"CV","index":4,"n_rows":170,"n_cols":5,"rows_kept":170,"cut":false,"hidden":false,"merged":[[124,0,136,0],[137,0,155,0],[156,0,169,0],[70,0,88,0],[89,0,100,0],[101,0,108,0],[109,0,114,0],[115,0,123,0],[4,0,16,0],[17,0,29,0],[30,0,42,0],[43,0,54,0],[55,0,69,0],[0,0,0,9],[2,3,2,4],[1,3,1,4],[1,2,3,2],[1,0,3,0],[1,1,3,1]]}
["Retour à l'accueil"]
["Arrondissements","Villages","Nombre de réunions de conseils de village tenues au cours de l’année","Section Villagoise\\urbaine de Gestion Fonctiere (SVGF et SUGF)"]
[null,null,null,"Enquetes Publiques Contradictoires (EPC)"]
[null,null,null,"Nombre de demandes effectuées","Nombre de demandes réalisées"]
["1ER ARRONDISSEMENT","AVOTROU AIMONLONFIDE",4]
[null,"AVOTROU GBEGO",5]
[null,"AVOTROU HOUEZEKOME",5]
[null,"DANDJI",4]
[null,"DANDJI HOKANME",4]
[null,"DONATEN",5]
[null,"FINAGNON",4]
[null,"N'VENAMEDE",4]
[null,"SURU LERE",3]
[null,"TANTO",4]
[null,"TCHANHOUNKPAME",3]
[null,"TOKPLEGBE",3]
[null,"YAGBE",7]
["2EME ARRONDISSEMENT","AHOUASSA",3]
[null,"DJEDJE-LAYE",6]
[null,"GANKPODO",3]
[null,"IREDE",4]
[null,"KOWEGBO",4]
[null,"KPONDEHOU",0]
[null,"KPONDEHOU TCHEMEI",4]
[null,"LOM-NAVA",3]
[null,"MINONTCHOU",5]
[null,"SENADE SEKOU",5]
[null,"SENANDE",4]
[null,"YENAWA",4]
[null,"YENAWA DAHO",5]
["3EME ARRONDISSEMENT","ADJEGOUNLE",5]
[null,"ADOGLETA",2]
[null,"AGBATO",5]
[null,"AGBODJEDO",5]
[null,"AYELAWADJE",5]
[null,"AYELAWADJE AGONGOME",5]
[null,"FIFATIN",5]
[null,"GBENONKPO",4]
[null,"HLACOMEY",5]
[null,"KPANKPAN",5]
[null,"MIDOMBO",5]
[null,"SEGBEYA NORD",6]
[null,"SEGBEYA SUD",5]
["4EME ARRONDISSEMENT","ABOKICODJI CENTRE",5]
[null,"ABOKICODJI LAGUNE",5]
[null,"AKPAKPA DODOME",4]
[null,"DEDOKPO",4]
[null,"ENAGNON",4]
[null,"FIFADJI HOUTO",5]
[null,"GBEDJEWIN",4]
[null,"MISSESSIN",3]
[null,"OHE",4]
[null,"SODJEATINME CENTRE",4]
[null,"SODJEATINME EST",4]
[null,"SODJEATINME OUEST",4]
["5EME ARRONDISSEMENT","AVLEKETE JONQUET",4]
[null,"BOCOSSI TOKPA",4]
[null,"DOTA",2]
[null,"GBEDOKPO",4]
[null,"GBETO",3]
[null,"GUINKOMEY",0]
[null,"MIFONGOU",3]
[null,"MISSEBO",3]
[null,"MISSITE",4]
[null,"NOUVEAU PONT",3]
[null,"TOKPA HOHO",0]
[null,"XWLACODJI KPODJI",5]
[null,"XWLACODJI PLAGE",4]
[null,"ZONGO EHUZU",4]
[null,"ZONGO NIMA",4]
["6EME ARRONDISSEMENT","AHOUANSORI AGATA",0]
[null,"AHOUANSORI AGUE",4]
[null,"AHOUANSORI LADJI",2]
[null,"AHOUANSORI TOWETA",4]
[null,"AHOUANSORI TOWETA KPOTAI",4]
[null,"AIDJEDO",2]
[null,"AIDJEDO AHITO",4]
[null,"AIDJEDO GBEGO",4]
[null,"AIDJEDO VIGNON",2]
[null,"DANTOKPA",4]
[null,"DJIDJE",5]
[null,"DJIDJE AICHEDJI",4]
[null,"GBEDJROMEDE",5]
[null,"GBEDJROMEDE SUD",2]
[null,"HINDE NORD",3]
[null,"HINDE SUD",4]
[null,"JERICHO NORD",4]
[null,"JERICHO SUD",3]
[null,"VOSSA",4]
["7EME ARRONDISSEMENT","DAGBEDJI SIKE",3]
[null,"ENAGNON-SIKE",2]
[null,"FIGNON SIKE",4]
[null,"GBEDOMIDJI",3]
[null,"GBENAN",3]
[null,"GBEWA",4]
[null,"MISSITE-SIKE",4]
[null,"SEDAMI",2]
[null,"SEDJRO SAINT MICHEL",5]
[null,"SEHOGAN SIKE",4]
[null,"TODOTE",4]
[null,"YEVEDO",0]
["8EME ARRONDISSEMENT","AGBODJEDO STE RITA",4]
[null,"AGONTINKON",4]
[null,"GBEDAGBA",4]
[null,"HOUEHOUN",4]
[null,"HOUENOUSSOU STE RITA",3]
[null,"MEDEDJRO",4]
[null,"MINONKPO WOLOGUEDE",4]
[null,"TONATO",4]
["9EME ARRONDISSEMENT","FIFADJI",4]
[null,"KINDONOU",5]
[null,"MENONTIN",3]
[null,"VOSSA-KPODJI",4]
[null,"ZOGBO",4]
[null,"ZOGBOHOUE",5]
["10EME ARRONDISSEMENT","AGOUNVOCODJI",1]
[null,"GBENONKPO",3]
[null,"KOUHOUNOU",2]
[null,"MIDEDJI",3]
[null,"MISSEKPLE",3]
[null,"MISSOGBE",4]
[null,"SETOVI",4]
[null,"VEDOKO",6]
[null,"YENAWA-FIFADJI",4]
["11EME ARRONDISSEMENT","GBEDIGA GUEDEHOUNGUE",3]
[null,"GBEGAMEY AHITO",4]
[null,"GBEGAMEY CENTRE",4]
[null,"GBEGAMEY DODO AYIDJE",4]
[null,"GBEGAMEY GBAGOUDO",2]
[null,"GBEGAMEY MIFONGOU",4]
[null,"HOUEYIHO",3]
[null,"HOUEYIHO TANOU",2]
[null,"SAINT JEAN GBEDIGA",4]
[null,"VODJE ALLOBATIN",4]
[null,"VODJE AYIDOTE",3]
[null,"VODJE CENTRE",4]
[null,"VODJE FINAGNON",2]
["12EME ARRONDISSEMENT","AHOUANLEKO",4]
[null,"AIBATIN DODO",4]
[null,"AKOGBATO",4]
[null,"CADJEHOUN AGONGA",4]
[null,"CADJEHOUN AUPIAIS",3]
[null,"CADJEHOUN AZALOKOGON",4]
[null,"CADJEHOUN DETINSA",6]
[null,"CADJEHOUN GARE",4]
[null,"CADJEHOUN KPOTA",6]
[null,"FIDJROSSE CENTRE",5]
[null,"FIDJROSSE KPOTA",3]
[null,"FIYEGNON HOUTA",4]
[null,"FIYEGNON JACQUOT",4]
[null,"GBODJETIN",3]
[null,"HAIE VIVE",0]
[null,"HLAZOUNTO",4]
[null,"LES COCOTIERS",1]
[null,"VODJE KPOTA",4]
[null,"YEMICODJI",4]
["13EME ARRONDISSEMENT","AGLA AGONGBOMEY",4]
[null,"AGLA AKPLOMEY",4]
[null,"AGLA FIGARO",3]
[null,"AGLA LES PYLONES",3]
[null,"AGLA PETIT CHATEAU",4]
[null,"AGLA SUD",3]
[null,"AGLAFINAFA",4]
[null,"AHOGBOHOUE CITE DE L'EXPERIENCE",5]
[null,"AHOGBOHOUE CITE EUCARISTIE",7]
[null,"AIBATIN KPOTA",4]
[null,"CITE ADJAHA",4]
[null,"GBEDEGBE",4]
[null,"HOUENOUSSOU",4]
[null,"MISSITE",4]

{"sheet":"CP","index":5,"n_rows":16,"n_cols":42,"rows_kept":16,"cut":false,"hidden":false,"merged":[[2,0,3,0],[2,1,3,1],[2,2,3,2],[1,0,1,2],[1,3,1,38],[2,3,2,5],[2,6,2,8],[2,9,2,11],[2,12,2,14],[2,15,2,17],[2,18,2,20],[2,21,2,23],[2,24,2,26],[2,27,2,29],[2,30,2,32],[2,33,2,35],[2,36,2,38]]}
["Retour à l'accueil"]
["Tenue des sessions ordinaires des commissions permanentes"]
["Commissions permanentes (CP)","Nom de la commission","Effectif des membres ","Réunion N°1",null,null,"Réunion N°2",null,null,"Réunion N°3",null,null,"Réunion N°4",null,null,"Réunion N°5",null,null,"Réunion N°6",null,null,"Réunion N°7",null,null,"Réunion N°8",null,null,"Réunion N°9",null,null,"Réunion N°10",null,null,"Réunion N°11",null,null,"Réunion N°12"]
[null,null,null,"Nombre de membres presents ","Nombre de propositions faites ","Nombre de propositions réalisées par le Maire","Nombre de membres presents ","Nombre de propositions faites ","Nombre de propositions réalisées par le Maire","Nombre de membres presents ","Nombre de propositions faites ","Nombre de propositions réalisées par le Maire","Nombre de membres presents ","Nombre de propositions faites ","Nombre de propositions réalisées par le Maire","Nombre de membres presents ","Nombre de propositions faites ","Nombre de propositions réalisées par le Maire","Nombre de membres presents ","Nombre de propositions faites ","Nombre de propositions réalisées par le Maire","Nombre de membres presents ","Nombre de propositions faites ","Nombre de propositions réalisées par le Maire","Nombre de membres presents ","Nombre de propositions faites ","Nombre de propositions réalisées par le Maire","Nombre de membres presents ","Nombre de propositions faites ","Nombre de propositions réalisées par le Maire","Nombre de membres presents ","Nombre de propositions faites ","Nombre de propositions réalisées par le Maire","Nombre de membres presents ","Nombre de propositions faites ","Nombre de propositions réalisées par le Maire","Nombre de membres presents ","Nombre de propositions faites ","Nombre de propositions réalisées par le Maire"]
["CP N°1","Commission des Affaires Economiques et Financieres (CAEF)",6,3,2,2,null,null,null,null,null,null,null,null,null,null,null,null,null,null,null,null,null,null,null,null,null,null,null,null,null,null,null,null,null,null,null,null,null,null,null,{"$f":"C5*COUNTA(D5,G5,J5,M5,S5,V5,Y5,AB5,AE5,AH5,AK5)","v":6}]
["CP N°2","Commission des Affaires Domaniales et Environnementales (CADE)",7,6,2,2,null,null,null,null,null,null,null,null,null,null,null,null,null,null,null,null,null,null,null,null,null,null,null,null,null,null,null,null,null,null,null,null,null,null,null,7]
["CP N°3","Commission des Affaires Sociales et Culturelles (CASC)",6,4,2,2,null,null,null,null,null,null,null,null,null,null,null,null,null,null,null,null,null,null,null,null,null,null,null,null,null,null,null,null,null,null,null,null,null,null,null,6]
["CP N°4","Commission d'Assainissement, de Santé, de l'Hygiène et la Salubrité",5,5,2,2,null,null,null,null,null,null,null,null,null,null,null,null,null,null,null,null,null,null,null,null,null,null,null,null,null,null,null,null,null,null,null,null,null,null,null,5]
["CP N°5","Commission Infrastructures, Equipements et Transports",5,5,2,2,null,null,null,null,null,null,null,null,null,null,null,null,null,null,null,null,null,null,null,null,null,null,null,null,null,null,null,null,null,null,null,null,null,null,null,5]
["CP N°6","Commission de la Sécurité et de l'Immigration Urbaine",6,4,2,2,null,null,null,null,null,null,null,null,null,null,null,null,null,null,null,null,null,null,null,null,null,null,null,null,null,null,null,null,null,null,null,null,null,null,null,6]
["CP N°7","Commission Equipements Marchands",7,4,2,2,null,null,null,null,null,null,null,null,null,null,null,null,null,null,null,null,null,null,null,null,null,null,null,null,null,null,null,null,null,null,null,null,null,null,null,7]
["CP N°8","Commission Etudes, Planification et Développement Local",4,4,2,2,null,null,null,null,null,null,null,null,null,null,null,null,null,null,null,null,null,null,null,null,null,null,null,null,null,null,null,null,null,null,null,null,null,null,null,4]
["CP N°9",null,null,null,null,null,null,null,null,null,null,null,null,null,null,null,null,null,null,null,null,null,null,null,null,null,null,null,null,null,null,null,null,null,null,null,null,null,null,null,null,0]
["CP N°10",null,null,null,null,null,null,null,null,null,null,null,null,null,null,null,null,null,null,null,null,null,null,null,null,null,null,null,null,null,null,null,null,null,null,null,null,null,null,null,null,0]
["Nombre",null,{"$f":"COUNT(C5:C14)","v":8},8,8,8,0,0,0,0,0,0,0,0,0,0,0,0,0,0,0,0,0,0,0,0,0,0,0,0,0,0,0,0,0,0,0,0,0,null,null,{"$f":"SUM(AP5:AP14)","v":46}]
["Effectif",null,{"$f":"SUM(C5:C14)","v":46},35,16,16,0,0,0,0,0,0,0,0,0,0,0,0,0,0,0,0,0,0,0,0,0,0,0,0,0,0,0,0,0,0,0,0,0]

{"sheet":"Cadres de Concertation","index":6,"n_rows":18,"n_cols":12,"rows_kept":18,"cut":false,"hidden":false,"merged":[[0,0,0,1],[6,3,17,11],[2,3,3,4],[1,0,1,11],[2,0,2,2],[2,5,2,11],[3,0,3,1],[4,0,4,1],[3,5,4,5],[3,6,4,6],[3,7,4,7],[3,8,4,8],[3,9,4,9],[3,10,4,10],[3,11,4,11],[5,3,5,4]]}
["Retour à l'accueil"]
["Tenue des Cadres de Concertation"]
[" Mairie-SDE",null,null,null,null,"Autres Cadres "]
["Effectif des membres du Cadre de Concertation Mairie-SDE",null,22,null,null,"Education","Eau, Hygiène et Assainissement","Agricole","Maire et OSC","Nutrition","Sport","Autres"]
["Nombre de sessions prévues",null,2]
["Sessions","Effectif présent","Date","Nombre de séances tenues",null,0,4,3,0,2,null,2]
["Session N°1",22,"2019-01-23"]
["Session N°2",22,"2019-10-09"]
["Session N°3"]
["Session N°4"]
["Session N°5"]
["Session N°6"]
["Session N°7"]
["Session N°8"]
["Session N°9"]
["Session N°10"]
["Session N°11"]
["Session N°12"]

{"sheet":"Tutelle","index":7,"n_rows":9,"n_cols":8,"rows_kept":9,"cut":false,"hidden":false,"merged":[[8,0,8,2],[0,0,0,3],[1,0,1,3],[2,0,2,1],[6,0,6,3],[7,0,7,2],[1,4,4,4],[1,5,1,6],[2,5,2,6],[3,5,3,6],[4,5,4,6],[5,4,8,4],[5,5,5,6],[6,5,6,6],[7,5,7,6],[8,5,8,6]]}
["Retour à l'accueil"]
["Participation aux CDCC",null,null,null,"Budget communal (Budget primitif)","Le budget est transmis ou pas.",null,"TRANSMIS"]
["Effectif (Maire et ses adjoints)",null,16,null,null,"Date d'adoption du budget",null,"2018-11-29"]
["Sessions","Effectif présent","Date début session","Date fin session",null,"Date de transmission du budget à la tutelle",null,"2018-12-04"]
["CDCC N°1",16,"2019-01-23","2019-01-23",null,"Date d'approbation du budget par la tutelle",null,"2018-12-31"]
["CDCC N°2",16,"2019-10-09","2019-10-09","Compte Administratif ","Le compte administratif est  transmis ou pas.",null,"TRANSMIS"]
["Conformité des actes",null,null,null,null,"Date d'adoption du compte administratif de l'année 2018",null,"2019-05-31"]
["Nombre d’actes conformes",null,null,210,null,"Date de transmission à la tutelle",null,"2019-06-03"]
["Nombre d’actes soumis pour approbation",null,null,210,null,"Date d'approbation du compte administratif par la tutelle",null,"2019-06-24"]

{"sheet":"Marchés","index":8,"n_rows":16,"n_cols":208,"rows_kept":16,"cut":false,"hidden":false,"merged":[[0,0,0,7],[5,0,5,3],[3,0,3,3],[2,0,2,3],[1,0,1,3],[1,5,5,5],[4,0,4,3],[6,2,6,3],[6,4,6,5],[6,6,6,7],[6,0,8,0],[6,1,8,1],[7,2,7,3],[7,4,7,5],[7,6,7,7],[6,14,6,15],[6,16,6,17],[6,18,6,19],[6,20,6,21],[7,14,7,15],[7,16,7,17],[7,18,7,19],[7,20,7,21],[6,8,6,9],[6,10,6,11],[6,12,6,13],[7,8,7,9],[7,10,7,11],[7,12,7,13],[6,32,6,33],[7,22,7,23],[7,24,7,25],[7,26,7,27],[7,28,7,29],[7,30,7,31],[7,32,7,33],[6,22,6,23],[6,24,6,25],[6,26,6,27],[6,28,6,29],[6,30,6,31],[6,44,6,45],[6,46,6,47],[7,34,7,35],[7,36,7,37],[7,38,7,39],[7,40,7,41],[7,42,7,43],[7,44,7,45],[7,46,7,47],[6,34,6,35],[6,36,6,37],[6,38,6,39],[6,40,6,41],[6,42,6,43],[6,58,6,59],[6,60,6,61],[7,48,7,49],[7,50,7,51],[7,52,7,53],[7,54,7,55],[7,56,7,57],[7,58,7,59],[7,60,7,61],[6,48,6,49],[6,50,6,51],[6,52,6,53],[6,54,6,55],[6,56,6,57],[6,72,6,73],[7,62,7,63],[7,64,7,65],[7,66,7,67],[7,68,7,69],[7,70,7,71],[7,72,7,73],[6,62,6,63],[6,64,6,65],[6,66,6,67],[6,68,6,69],[6,70,6,71],[6,84,6,85],[7,74,7,75],[7,76,7,77],[7,78,7,79],[7,80,7,81],[7,82,7,83],[7,84,7,85],[6,74,6,75],[6,76,6,77],[6,78,6,79],[6,80,6,81],[6,82,6,83],[6,96,6,97],[6,98,6,99],[7,86,7,87],[7,88,7,89],[7,90,7,91],[7,92,7,93],[7,94,7,95],[7,96,7,97],[7,98,7,99],[6,86,6,87],[6,88,6,89],[6,90,6,91],[6,92,6,93],[6,94,6,95],[6,110,6,111],[7,100,7,101],[7,102,7,103],[7,104,7,105],[7,106,7,107],[7,108,7,109],[7,110,7,111],[6,100,6,101],[6,102,6,103],[6,104,6,105],[6,106,6,107],[6,108,6,109],[6,122,6,123],[6,124,6,125],[7,112,7,113],[7,114,7,115],[7,116,7,117],[7,118,7,119],[7,120,7,121],[7,122,7,123],[7,124,7,125],[6,112,6,113],[6,114,6,115],[6,116,6,117],[6,118,6,119],[6,120,6,121],[6,136,6,137],[6,138,6,139],[6,140,6,141],[7,126,7,127],[7,128,7,129],[7,130,7,131],[7,132,7,133],[7,134,7,135],[7,136,7,137],[7,138,7,139],[7,140,7,141],[6,126,6,127],[6,128,6,129],[6,130,6,131],[6,132,6,133],[6,134,6,135],[6,152,6,153],[7,142,7,143],[7,144,7,145],[7,146,7,147],[7,148,7,149],[7,150,7,151],[7,152,7,153],[6,142,6,143],[6,144,6,145],[6,146,6,147],[6,148,6,149],[6,150,6,151],[6,164,6,165],[6,166,6,167],[7,154,7,155],[7,156,7,157],[7,158,7,159],[7,160,7,161],[7,162,7,163],[7,164,7,165],[7,166,7,167],[6,154,6,155],[6,156,6,157],[6,158,6,159],[6,160,6,161],[6,162,6,163],[6,178,6,179],[7,168,7,169],[7,170,7,171],[7,172,7,173],[7,174,7,175],[7,176,7,177],[7,178,7,179],[6,168,6,169],[6,170,6,171],[6,172,6,173],[6,174,6,175],[6,176,6,177],[6,190,6,191],[7,180,7,181],[7,182,7,183],[7,184,7,185],[7,186,7,187],[7,188,7,189],[7,190,7,191],[6,180,6,181],[6,182,6,183],[6,184,6,185],[6,186,6,187],[6,188,6,189],[6,202,6,203],[6,204,6,205],[6,206,6,207],[7,202,7,203],[7,204,7,205],[7,206,7,207],[7,192,7,193],[7,194,7,195],[7,196,7,197],[7,198,7,199],[7,200,7,201],[6,192,6,193],[6,194,6,195],[6,196,6,197],[6,198,6,199],[6,200,6,201]]}
["Retour à l'accueil"]
["Type de commune",null,null,null,"Commune à statut particulier"]
["Plan de passation des marchés publics publiés",null,null,null,"OUI"]
["Nombre de marchés publics passés hors plan de passation des marchés ",null,null,null,0]
["Nombre de marchés conclus dans l'année",null,null,null,103]
["Nombre de marchés conclus dans l’année ayant respecté les procédures",null,null,null,103]
["Mode de passation","Délai de passation"," Marché N°1",null," Marché N°2",null," Marché N°3",null,"Marché N°4",null,"Marché N°5",null,"Marché N°6",null,"Marché N°7",null,"Marché N°8",null,"Marché N°9",null,"Marché N°10",null,"Marché N°11",null,"Marché N°12",null,"Marché N°13",null,"Marché N°14",null,"Marché N°15",null,"Marché N°16",null,"Marché N°17",null,"Marché N°18",null,"Marché N°19",null,"Marché N°20",null,"Marché N°21",null,"Marché N°22",null,"Marché N°23",null,"Marché N°24",null,"Marché N°25",null,"Marché N°26",null,"Marché N°27",null,"Marché N°28",null,"Marché N°29",null,"Marché N°30",null,"Marché N°31",null,"Marché N°32",null,"Marché N°33",null,"Marché N°34",null,"Marché N°35",null,"Marché N°36",null,"Marché N°37",null,"Marché N°38",null,"Marché N°39",null,"Marché N°40",null,"Marché N°41",null,"Marché N°42",null,"Marché N°43",null,"Marché N°44",null,"Marché N°45",null,"Marché N°46",null,"Marché N°47",null,"Marché N°48",null,"Marché N°49",null,"Marché N°50",null,"Marché N°51",null,"Marché N°52",null,"Marché N°53",null,"Marché N°54",null,"Marché N°55",null,"Marché N°56",null,"Marché N°57",null,"Marché N°58",null,"Marché N°59",null,"Marché N°60",null,"Marché N°61",null,"Marché N°62",null,"Marché N°63",null,"Marché N°64",null,"Marché N°65",null,"Marché N°66",null,"Marché N°67",null,"Marché N°68",null,"Marché N°69",null,"Marché N°70",null,"Marché N°71",null,"Marché N°72",null,"Marché N°73",null,"Marché N°74",null,"Marché N°75",null,"Marché N°76",null,"Marché N°77",null,"Marché N°78",null,"Marché N°79",null,"Marché N°80",null,"Marché N°81",null,"Marché N°82",null,"Marché N°83",null,"Marché N°84",null,"Marché N°85",null,"Marché N°86",null,"Marché N°87",null,"Marché N°88",null,"Marché N°89",null,"Marché N°90",null,"Marché N°91",null,"Marché N°92",null,"Marché N°93",null,"Marché N°94",null,"Marché N°95",null,"Marché N°96",null,"Marché N°97",null,"Marché N°98",null,"Marché N°99",null,"Marché N°100",null,"Marché N°101",null,"Marché N°102",null,"Marché N°103"]
[null,null,"Ouverture des voies en terre dans le 13ème arrondissement de Cotonou",null,"Travaux de réfection des écoles maternelles et primaires publiques de la ville de Cotonou (lot 2)",null,"Travaux de réfection des écoles maternelles et primaires publiques de la ville de Cotonou (lot 1)",null,"Travaux de réfection des écoles maternelles et primaires publiques de la ville de Cotonou (lot 1)",null,"Travaux de réfection des écoles maternelles et primaires publiques de la ville de Cotonou (lot 4)",null,"Travaux de réfection des écoles maternelles et primaires publiques de la ville de Cotonou (lot 5)",null,"Assurance des véhicules légers, camions et engins lourds",null,"Aménagement des cours et aires jeux des écoles primaires publiques",null,"Reboisement dans la ville de cotonou",null,"Acquisition de 8 sabots blocs roues adapté à tout type de véhicules",null,"Fournitures des valuers inatives",null,"Travaux de construction,reconstruction et réfection des marchés secondaires",null,"Travaux de construction d'un module de 4 salle de classe en rez de chaussée extensibles R +2 au CEG Suru-léré dans le 1er arrondissement",null,"Embellissement de la ville de Cotonou dans le cadre des festivités du 1er août 2019",null,"Réalisation de l'opérationnalisation de la taxe sur le développement local dans la commune de cotonou",null,"Elaboration d'un répertoire de toponymie dans le cadre de baptême des rues dans la commune de cotonou",null,"Mise en place d'une base de données statistiques dotée d'application SIG au profit de la mairie de cotonou",null,"Elaboration d'un maniel de suivi-évaluation des projets et programmes de la mairie de cotonou",null,"Acquisition de fourniture de bureau au profit de la mairie de cotonou",null,"Construction d'un caniveau dans le 6ème arrondissement de cotonou et corresction de dégradation dans le 11ème arrondissement",null,"Location d'engins lourds",null,"destruction des produits avariés",null,"Travaux de fabrication et pose de dalettes dans les arrondissements",null,"Entretien et la réfection des aires de jeux dans la ville de cotonou",null,"Acquisition du matériel et équipements de travail et d'intervention de la cellule de communication",null,"Entretien de 3900ml des voies en terre dans le 6ème et 8ème arrondissement lot 2",null,"Entretien de 3900ml des voies en terre dans le 6ème  arrondissement lot 1",null,"Entretien de 1700 ml des voies en terre dans le 10ème arrrondissement lot 4",null,"Entretien de 1700 ml des voies en terre dans le 10ème arrondissement (lot 5)",null,"Entretien de 1700 ml des voies en terre dans le 4ème arrondissement (lot 6)",null,"Entretien de 1800 ml des voies en terre dans le 8ème arrondissement de cotonou (lot 3)",null,"Travaux de dégagement, nettoyage et badigeonnage de la place du souvenir dans la ville de cotonou",null,"Acquisition d'une caméra au profit de la mairie de cotonou",null,"Entretien des voies en terre dans le 5ème et 7ème arrondissement (lot 2)",null,"Travaux d'entretien des voies pavées dans le 2ème et 3ème arrondissement (lot 1)",null,"Travaux d'entretien des voies pavées dans le 9ème et 12ème arrondissement (lot 3)",null,"Travaux d'entretien des voies pavées dans le 13ème arrondissement (lot 4)",null,"Entretien et la maintenance des feux tricolores de certains carrefours de la ville de Cotonou",null,"Entretien, réparation des véhicules légers, camions et engins lourds de la mairie de cotonou (lot 3)",null,"Entretien, réparation des véhicules légers, camions et engins lourds de la mairie de cotonou (lot 2)",null,"Entretien, réparation des véhicules légers, camions et engins lourds de la mairie de cotonou (lot 1)",null,"Travaux de construction d'un bâtiment sanitaire  RDC (extensible) R + 1 pour abriter le dispensaire du centre de santé d'Agbato",null,"Travaux de construction et réfection de bâtiment sanitaire (lot 2) travaux d'extension de centre de santé de sikècodji en rez de chaussée plus étage (R +1)",null,"Travaux de construction et réfection de bâtiment sanitaire (lot 1) travaux d'aménagement de la cour du centre de vaccination de tokpa hoho",null,"Entretien des espaces verts, jardins, monuments et places publiques",null,"Entretien des cimetières",null,"Entretien et vidange des fosses septiques de la mairie",null,"Réparation des chicanes de la police municipale",null,"Reconstruction ou construction des écoles primaires et maternelles (lot 2)",null,"Reconstruction ou réfection des écoles primaires et maternelles (lot 1)",null,"Reconstruction ou réfection des écoles primaires et maternelles (lot 4)",null,"Construction, reconstruction ou réfection des écoles primaires et maternelles (lot 7)",null,"Construction, reconstruction ou réfection des écoles primaires et maternelles (lot 8)",null,"Construction ou réfection des écoles primaires et maternelles (lot 5)",null,"Maintenance et la mise à jour du logiciel de gestion financière et comptable",null,"Construction, reconstruction ou réfection des écoles primaires et maternelles (lot 3)",null,"Construction, reconstruction ou réfection des écoles primaires et maternelles (lot 6)",null,"Elaboration du manuel de procédures financières et comptables au profit de la mairie de cotonou",null,"Entretien et réparartion des moboliers de bureau de la mairie de cotonou",null,"Elaboration de l'APS de l'assainissement et le verdissement scolaire de la ville de Cotonou",null,"Conception, mise en ligne et hébergement du site web de la mairie de cotonou",null,"Actualisation et vulgarisation du plan de contingence de la ville de cotonou",null,"Acquisition de moustiquaires dans le cadre des inondations et autres",null,"Acquisition de consommables informatiques",null,"Recrutement d'un prestataire pour la mise place d'un outil pour l'organisation de la reddition de comptes à la mairie de cotonou",null,"Acquisition complémentaire de petits matériels et outillages",null,"Acquisition de sabots bloque roues au profit de la police municipale",null,"Maintenance du système de sécurité de la poinçonneuse du logiciel de gestion des titres de perception, autres équipements et matériels de la régie principale",null,"Achat de matériels d'électricités, de plomberie, de menuiserie, informatiques et autres",null,"Elaboration du cadre organique de gestion des ressources humaines au profit de la mairie de cotonou",null,"Acquisition de petits matériels et outillages",null,"Acquisition de climatiseurs",null,"Acquisition de 1000 tables et bancs + transport dans le 1er, 3ème et 4ème arrondissement (lot 1)",null,"Acquisition de 1000 tables et bancs + transport dans le 5ème, 6ème, 7ème et 8ème arrondissement (lot 2)",null,"Acquisition de 1176 tables et bancs + transport dans le 9ème, 10ème, 11ème, 12ème et 13ème arrondissement (lot 3)",null,"Réfection de toiture du magasin de la direction des services éconmiques et financiers de la mairie de cotonou",null,"appui à l'hygiène dans les habitations insalubres des 13 arrondissements de la ville de cotonou",null,"Achat de carte de recharge, cadenas et autres matériels pour les opérations de recouvrement des services des recettes (patentes foraines)",null,"Organisation de visites et soins médicaux aux écoliers des centres des aveugles, amblyopes et sourds de Sègbèya de Vêdoko, de Dandji, de yèmicodji et Ladji",null,"Achat de vivres au profit des orphélins de VIH/SIDA",null,"Réhabilitation de réseau de signalisation de la ville de Cotonou",null,"Acquisition de mobiliers de bureau au profit de la mairie de cotonou",null,"Travaux de construction, reconstruction et réfection des marchés secondaires  de la ville de cotonou",null,"Embellissement de la ville de cotonou",null,"Acquisition de matériels de bureau au profit de la mairie de cotonou (lot 1)",null,"Acquisition de matériels de bureau au profit de la mairie de cotonou (lot 2)",null,"Assainissement et construction de 20 dalots dans les arrondissements de cotonou",null,"acquisition de matériels pour l'entretien de réseau de signalisation",null,"Réalisation de l'étude sur la modernisation et l'exploitation de l'espace publicitaire dans la commune de cotonou",null,"Acquisition d'équipements funéraires",null,"Travaux de construction, reconstruction, réfection d'installations funèbres, construction de 230 fosses à Somè",null,"Fourniture des registres de l'état civil et autres imprimés divers (lot 2)",null,"Fourniture des registres de l'état civil (registre de naissance)  (lot 1)",null,"Construction, reconstruction ou réfection de l'hôtel de ville",null,"Construction de toilettes et cabines sanitaires dans la ville de cotonou (FADeC non affecté)",null,"Travaux de construction, reconstruction, réfection d'installations funèbres, construction de 140 fosses à Somè",null,"Travaux de construction de la clôture de l'EPP FINANGNON",null,"Travaux de réhabilitation de la place publique du carrefours la vie dans le 10ème arrondissement",null,"Fourniture et pose de 2100 dalettes dans les arrondissements (lot 3)",null,"Construction de 15 dalots dans les arrondissements de cotonou ",null,"Acquisition de 16 véhicules légers pour les CA",null,"Travaux de badigeonnage des artères et de réfection de voies entrant dans les préparatifs de la fête du 1er août 2019",null,"Confection de badges au profit des agents de la mairie de cotonou "]
[null,86,"Type de marchés publics ","Nombre de jours consacrés à la passation","Type de marchés publics ","Nombre de jours consacrés à la passation","Type de marchés publics ","Nombre de jours consacrés à la passation","Type de marchés publics ","Nombre de jours consacrés à la passation","Type de marchés publics ","Nombre de jours consacrés à la passation","Type de marchés publics ","Nombre de jours consacrés à la passation","Type de marchés publics ","Nombre de jours consacrés à la passation","Type de marchés publics ","Nombre de jours consacrés à la passation","Type de marchés publics ","Nombre de jours consacrés à la passation","Type de marchés publics ","Nombre de jours consacrés à la passation","Type de marchés publics ","Nombre de jours consacrés à la passation","Type de marchés publics ","Nombre de jours consacrés à la passation","Type de marchés publics ","Nombre de jours consacrés à la passation","Type de marchés publics ","Nombre de jours consacrés à la passation","Type de marchés publics ","Nombre de jours consacrés à la passation","Type de marchés publics ","Nombre de jours consacrés à la passation","Type de marchés publics ","Nombre de jours consacrés à la passation","Type de marchés publics ","Nombre de jours consacrés à la passation","Type de marchés publics ","Nombre de jours consacrés à la passation","Type de marchés publics ","Nombre de jours consacrés à la passation","Type de marchés publics ","Nombre de jours consacrés à la passation","Type de marchés publics ","Nombre de jours consacrés à la passation","Type de marchés publics ","Nombre de jours consacrés à la passation","Type de marchés publics ","Nombre de jours consacrés à la passation","Type de marchés publics ","Nombre de jours consacrés à la passation","Type de marchés publics ","Nombre de jours consacrés à la passation","Type de marchés publics ","Nombre de jours consacrés à la passation","Type de marchés publics ","Nombre de jours consacrés à la passation","Type de marchés publics ","Nombre de jours consacrés à la passation","Type de marchés publics ","Nombre de jours consacrés à la passation","Type de marchés publics ","Nombre de jours consacrés à la passation","Type de marchés publics ","Nombre de jours consacrés à la passation","Type de marchés publics ","Nombre de jours consacrés à la passation","Type de marchés publics ","Nombre de jours consacrés à la passation","Type de marchés publics ","Nombre de jours consacrés à la passation","Type de marchés publics ","Nombre de jours consacrés à la passation","Type de marchés publics ","Nombre de jours consacrés à la passation","Type de marchés publics ","Nombre de jours consacrés à la passation","Type de marchés publics ","Nombre de jours consacrés à la passation","Type de marchés publics ","Nombre de jours consacrés à la passation","Type de marchés publics ","Nombre de jours consacrés à la passation","Type de marchés publics ","Nombre de jours consacrés à la passation","Type de marchés publics ","Nombre de jours consacrés à la passation","Type de marchés publics ","Nombre de jours consacrés à la passation","Type de marchés publics ","Nombre de jours consacrés à la passation","Type de marchés publics ","Nombre de jours consacrés à la passation","Type de marchés publics ","Nombre de jours consacrés à la passation","Type de marchés publics ","Nombre de jours consacrés à la passation","Type de marchés publics ","Nombre de jours consacrés à la passation","Type de marchés publics ","Nombre de jours consacrés à la passation","Type de marchés publics ","Nombre de jours consacrés à la passation","Type de marchés publics ","Nombre de jours consacrés à la passation","Type de marchés publics ","Nombre de jours consacrés à la passation","Type de marchés publics ","Nombre de jours consacrés à la passation","Type de marchés publics ","Nombre de jours consacrés à la passation","Type de marchés publics ","Nombre de jours consacrés à la passation","Type de marchés publics ","Nombre de jours consacrés à la passation","Type de marchés publics ","Nombre de jours consacrés à la passation","Type de marchés publics ","Nombre de jours consacrés à la passation","Type de marchés publics ","Nombre de jours consacrés à la passation","Type de marchés publics ","Nombre de jours consacrés à la passation","Type de marchés publics ","Nombre de jours consacrés à la passation","Type de marchés publics ","Nombre de jours consacrés à la passation","Type de marchés publics ","Nombre de jours consacrés à la passation","Type de marchés publics ","Nombre de jours consacrés à la passation","Type de marchés publics ","Nombre de jours consacrés à la passation","Type de marchés publics ","Nombre de jours consacrés à la passation","Type de marchés publics ","Nombre de jours consacrés à la passation","Type de marchés publics ","Nombre de jours consacrés à la passation","Type de marchés publics ","Nombre de jours consacrés à la passation","Type de marchés publics ","Nombre de jours consacrés à la passation","Type de marchés publics ","Nombre de jours consacrés à la passation","Type de marchés publics ","Nombre de jours consacrés à la passation","Type de marchés publics ","Nombre de jours consacrés à la passation","Type de marchés publics ","Nombre de jours consacrés à la passation","Type de marchés publics ","Nombre de jours consacrés à la passation","Type de marchés publics ","Nombre de jours consacrés à la passation","Type de marchés publics ","Nombre de jours consacrés à la passation","Type de marchés publics ","Nombre de jours consacrés à la passation","Type de marchés publics ","Nombre de jours consacrés à la passation","Type de marchés publics ","Nombre de jours consacrés à la passation","Type de marchés publics ","Nombre de jours consacrés à la passation","Type de marchés publics ","Nombre de jours consacrés à la passation","Type de marchés publics ","Nombre de jours consacrés à la passation","Type de marchés publics ","Nombre de jours consacrés à la passation","Type de marchés publics ","Nombre de jours consacrés à la passation","Type de marchés publics ","Nombre de jours consacrés à la passation","Type de marchés publics ","Nombre de jours consacrés à la passation","Type de marchés publics ","Nombre de jours consacrés à la passation","Type de marchés publics ","Nombre de jours consacrés à la passation","Type de marchés publics ","Nombre de jours consacrés à la passation","Type de marchés publics ","Nombre de jours consacrés à la passation","Type de marchés publics ","Nombre de jours consacrés à la passation","Type de marchés publics ","Nombre de jours consacrés à la passation","Type de marchés publics ","Nombre de jours consacrés à la passation","Type de marchés publics ","Nombre de jours consacrés à la passation","Type de marchés publics ","Nombre de jours consacrés à la passation","Type de marchés publics ","Nombre de jours consacrés à la passation","Type de marchés publics ","Nombre de jours consacrés à la passation","Type de marchés publics ","Nombre de jours consacrés à la passation","Type de marchés publics ","Nombre de jours consacrés à la passation","Type de marchés publics ","Nombre de jours consacrés à la passation","Type de marchés publics ","Nombre de jours consacrés à la passation"]
["Appel Offre Ouvert",46,null,null,"Travaux",119,"Travaux",119,"Travaux",119,"Travaux",119,"Travaux",119,null,null,null,null,null,null,null,null,null,null,null,null,null,null,null,null,null,null,null,null,null,null,null,null,null,null,null,null,null,null,null,null,null,null,null,null,null,null,"Travaux",135,"Travaux",75,"Travaux",119,"Travaux",135,"Travaux",135,"Travaux",135,null,null,null,null,"Travaux",69,"Travaux",69,"Travaux",69,"Travaux",69,null,119,null,null,null,null,null,null,null,null,null,null,null,null,null,null,null,null,null,null,null,null,"Travaux",457,"Travaux",457,"Travaux",457,"Travaux",457,"Travaux",457,"Travaux",457,"Travaux",119,"Travaux",457,"Travaux",457,null,null,null,null,null,null,null,null,null,null,null,null,null,null,null,null,null,null,null,null,null,null,null,null,null,null,null,null,null,null,"Fournitures et Services",98,"Fournitures et Services",51,"Fournitures et Services",98,null,null,null,null,null,null,null,null,"Travaux",119,null,null,null,null,null,null,null,null,null,null,null,null,"Travaux",76,null,null,null,null,null,null,null,null,null,null,null,null,null,null,null,null,null,null,null,null,null,null,"Travaux",76,"Travaux",76,"Fournitures et Services",165]
["Demande de renseignement",27,"Travaux",96,null,null,null,null,null,null,null,null,null,null,"Fournitures et Services",44,"Travaux",107,null,null,null,null,"Fournitures et Services",57,"Travaux",30,"Travaux",46,null,null,null,null,null,null,null,null,null,null,"Fournitures et Services",98,"Travaux",118,"Fournitures et Services",32,null,null,null,null,null,null,null,null,null,null,null,null,null,null,null,null,null,null,null,null,null,null,null,null,null,null,null,null,null,null,null,null,"Travaux",102,"Fournitures et Services",105,"Fournitures et Services",105,"Fournitures et Services",105,"Travaux",34,"Travaux",109,"Travaux",109,"Travaux",115,"Fournitures et Services",167,"Fournitures et Services",88,null,null,null,null,null,null,null,null,null,null,null,null,null,null,null,null,null,null,null,null,null,null,null,null,null,null,null,null,null,null,null,null,"Fournitures et Services",158,null,null,null,null,null,null,null,null,null,null,null,null,null,null,"Fournitures et Services",61,null,null,null,null,null,null,null,null,null,null,null,null,null,null,null,null,"Travaux",68,null,null,null,null,"Fournitures et Services",18,"Fournitures et Services",60,"Fournitures et Services",60,null,null,"Fournitures et Services",29,"Prestation intellectuelle réalisée par un cabinet",122,null,null,"Travaux",97,"Fournitures et Services",76,"Fournitures et Services",76,"Travaux",75,"Travaux",131,"Travaux",77,"Travaux",75,"Travaux",50]
["Demande de cotation",65,null,null,null,null,null,null,null,null,null,null,null,null,null,null,null,null,"Fournitures et Services",10,"Fournitures et Services",54,null,null,null,null,null,null,"Fournitures et Services",7,"Prestation intellectuelle réalisée par un cabinet",46,"Prestation intellectuelle réalisée par un cabinet",54,"Prestation intellectuelle réalisée par un cabinet",50,"Prestation intellectuelle réalisée par un cabinet",41,null,null,null,null,null,null,"Fournitures et Services",39,"Travaux",75,"Travaux",40,"Fournitures et Services",66,null,null,null,null,null,null,null,null,null,null,null,null,"Travaux",41,"Fournitures et Services",17,null,null,null,null,null,null,null,null,null,null,null,null,null,null,null,null,null,null,null,null,null,null,null,null,null,null,null,null,"Fournitures et Services",81,null,null,null,null,null,null,null,null,null,null,null,null,"Fournitures et Services",40,null,null,null,null,"Prestation intellectuelle réalisée par un cabinet",127,"Fournitures et Services",127,"Prestation intellectuelle réalisée par un cabinet",41,"Prestation intellectuelle réalisée par un cabinet",47,"Prestation intellectuelle réalisée par un cabinet",41,"Fournitures et Services",169,null,null,"Fournitures et Services",45,"Fournitures et Services",19,"Fournitures et Services",19,"Fournitures et Services",37,"Fournitures et Services",54,"Prestation intellectuelle réalisée par un cabinet",148,"Fournitures et Services",154,null,null,null,null,null,null,null,null,"Travaux",66,"Fournitures et Services",64,"Fournitures et Services",24,"Fournitures et Services",76,"Fournitures et Services",214,null,null,"Fournitures et Services",44,"Travaux",61,null,null,null,null,null,null,null,null,null,null,null,null,"Fournitures et Services",25,null,null,null,null,null,null,null,null,null,null,null,null,null,null,null,null,null,null,null,null,null,null,"Travaux",7,"Fournitures et Services",174]
[null,null,null,{"$f":"IF(C10=\"\",0,IF(D10<=$B10,1,0))","v":0},null,{"$f":"IF(E10=\"\",0,IF(F10<=$B10,1,0))","v":0},null,{"$f":"IF(G10=\"\",0,IF(H10<=$B10,1,0))","v":0},null,{"$f":"IF(I10=\"\",0,IF(J10<=$B10,1,0))","v":0},null,{"$f":"IF(K10=\"\",0,IF(L10<=$B10,1,0))","v":0},null,{"$f":"IF(M10=\"\",0,IF(N10<=$B10,1,0))","v":0},null,{"$f":"IF(O10=\"\",0,IF(P10<=$B10,1,0))","v":0},null,{"$f":"IF(Q10=\"\",0,IF(R10<=$B10,1,0))","v":0},null,{"$f":"IF(S10=\"\",0,IF(T10<=$B10,1,0))","v":0},null,{"$f":"IF(U10=\"\",0,IF(V10<=$B10,1,0))","v":0},null,{"$f":"IF(W10=\"\",0,IF(X10<=$B10,1,0))","v":0},null,{"$f":"IF(Y10=\"\",0,IF(Z10<=$B10,1,0))","v":0},null,{"$f":"IF(AA10=\"\",0,IF(AB10<=$B10,1,0))","v":0},null,{"$f":"IF(AC10=\"\",0,IF(AD10<=$B10,1,0))","v":0},null,{"$f":"IF(AE10=\"\",0,IF(AF10<=$B10,1,0))","v":0},null,{"$f":"IF(AG10=\"\",0,IF(AH10<=$B10,1,0))","v":0},null,{"$f":"IF(AI10=\"\",0,IF(AJ10<=$B10,1,0))","v":0},null,{"$f":"IF(AK10=\"\",0,IF(AL10<=$B10,1,0))","v":0},null,{"$f":"IF(AM10=\"\",0,IF(AN10<=$B10,1,0))","v":0},null,{"$f":"IF(AO10=\"\",0,IF(AP10<=$B10,1,0))","v":0},null,{"$f":"IF(AQ10=\"\",0,IF(AR10<=$B10,1,0))","v":0},null,{"$f":"IF(AS10=\"\",0,IF(AT10<=$B10,1,0))","v":0},null,{"$f":"IF(AU10=\"\",0,IF(AV10<=$B10,1,0))","v":0},null,{"$f":"IF(AW10=\"\",0,IF(AX10<=$B10,1,0))","v":0},null,{"$f":"IF(AY10=\"\",0,IF(AZ10<=$B10,1,0))","v":0},null,{"$f":"IF(BA10=\"\",0,IF(BB10<=$B10,1,0))","v":0},null,{"$f":"IF(BC10=\"\",0,IF(BD10<=$B10,1,0))","v":0},null,{"$f":"IF(BE10=\"\",0,IF(BF10<=$B10,1,0))","v":0},null,{"$f":"IF(BG10=\"\",0,IF(BH10<=$B10,1,0))","v":0},null,{"$f":"IF(BI10=\"\",0,IF(BJ10<=$B10,1,0))","v":0},null,{"$f":"IF(BK10=\"\",0,IF(BL10<=$B10,1,0))","v":0},null,{"$f":"IF(BM10=\"\",0,IF(BN10<=$B10,1,0))","v":0},null,{"$f":"IF(BO10=\"\",0,IF(BP10<=$B10,1,0))","v":0},null,{"$f":"IF(BQ10=\"\",0,IF(BR10<=$B10,1,0))","v":0},null,{"$f":"IF(BS10=\"\",0,IF(BT10<=$B10,1,0))","v":0},null,{"$f":"IF(BU10=\"\",0,IF(BV10<=$B10,1,0))","v":0},null,{"$f":"IF(BW10=\"\",0,IF(BX10<=$B10,1,0))","v":0},null,{"$f":"IF(BY10=\"\",0,IF(BZ10<=$B10,1,0))","v":0},null,{"$f":"IF(CA10=\"\",0,IF(CB10<=$B10,1,0))","v":0},null,{"$f":"IF(CC10=\"\",0,IF(CD10<=$B10,1,0))","v":0},null,{"$f":"IF(CE10=\"\",0,IF(CF10<=$B10,1,0))","v":0},null,{"$f":"IF(CG10=\"\",0,IF(CH10<=$B10,1,0))","v":0},null,{"$f":"IF(CI10=\"\",0,IF(CJ10<=$B10,1,0))","v":0},null,{"$f":"IF(CK10=\"\",0,IF(CL10<=$B10,1,0))","v":0},null,{"$f":"IF(CM10=\"\",0,IF(CN10<=$B10,1,0))","v":0},null,{"$f":"IF(CO10=\"\",0,IF(CP10<=$B10,1,0))","v":0},null,{"$f":"IF(CQ10=\"\",0,IF(CR10<=$B10,1,0))","v":0},null,{"$f":"IF(CS10=\"\",0,IF(CT10<=$B10,1,0))","v":0},null,{"$f":"IF(CU10=\"\",0,IF(CV10<=$B10,1,0))","v":0},null,{"$f":"IF(CW10=\"\",0,IF(CX10<=$B10,1,0))","v":0},null,{"$f":"IF(CY10=\"\",0,IF(CZ10<=$B10,1,0))","v":0},null,{"$f":"IF(DA10=\"\",0,IF(DB10<=$B10,1,0))","v":0},null,{"$f":"IF(DC10=\"\",0,IF(DD10<=$B10,1,0))","v":0},null,{"$f":"IF(DE10=\"\",0,IF(DF10<=$B10,1,0))","v":0},null,{"$f":"IF(DG10=\"\",0,IF(DH10<=$B10,1,0))","v":0},null,{"$f":"IF(DI10=\"\",0,IF(DJ10<=$B10,1,0))","v":0},null,{"$f":"IF(DK10=\"\",0,IF(DL10<=$B10,1,0))","v":0},null,{"$f":"IF(DM10=\"\",0,IF(DN10<=$B10,1,0))","v":0},null,{"$f":"IF(DO10=\"\",0,IF(DP10<=$B10,1,0))","v":0},null,{"$f":"IF(DQ10=\"\",0,IF(DR10<=$B10,1,0))","v":0},null,{"$f":"IF(DS10=\"\",0,IF(DT10<=$B10,1,0))","v":0},null,{"$f":"IF(DU10=\"\",0,IF(DV10<=$B10,1,0))","v":0},null,{"$f":"IF(DW10=\"\",0,IF(DX10<=$B10,1,0))","v":0},null,{"$f":"IF(DY10=\"\",0,IF(DZ10<=$B10,1,0))","v":0},null,{"$f":"IF(EA10=\"\",0,IF(EB10<=$B10,1,0))","v":0},null,{"$f":"IF(EC10=\"\",0,IF(ED10<=$B10,1,0))","v":0},null,{"$f":"IF(EE10=\"\",0,IF(EF10<=$B10,1,0))","v":0},null,{"$f":"IF(EG10=\"\",0,IF(EH10<=$B10,1,0))","v":0},null,{"$f":"IF(EI10=\"\",0,IF(EJ10<=$B10,1,0))","v":0},null,{"$f":"IF(EK10=\"\",0,IF(EL10<=$B10,1,0))","v":0},null,{"$f":"IF(EM10=\"\",0,IF(EN10<=$B10,1,0))","v":0},null,{"$f":"IF(EO10=\"\",0,IF(EP10<=$B10,1,0))","v":0},null,{"$f":"IF(EQ10=\"\",0,IF(ER10<=$B10,1,0))","v":0},null,{"$f":"IF(ES10=\"\",0,IF(ET10<=$B10,1,0))","v":0},null,{"$f":"IF(EU10=\"\",0,IF(EV10<=$B10,1,0))","v":0},null,{"$f":"IF(EW10=\"\",0,IF(EX10<=$B10,1,0))","v":0},null,{"$f":"IF(EY10=\"\",0,IF(EZ10<=$B10,1,0))","v":0},null,{"$f":"IF(FA10=\"\",0,IF(FB10<=$B10,1,0))","v":0},null,{"$f":"IF(FC10=\"\",0,IF(FD10<=$B10,1,0))","v":0},null,{"$f":"IF(FE10=\"\",0,IF(FF10<=$B10,1,0))","v":0},null,{"$f":"IF(FG10=\"\",0,IF(FH10<=$B10,1,0))","v":0},null,{"$f":"IF(FI10=\"\",0,IF(FJ10<=$B10,1,0))","v":0},null,{"$f":"IF(FK10=\"\",0,IF(FL10<=$B10,1,0))","v":0},null,{"$f":"IF(FM10=\"\",0,IF(FN10<=$B10,1,0))","v":0},null,{"$f":"IF(FO10=\"\",0,IF(FP10<=$B10,1,0))","v":0},null,{"$f":"IF(FQ10=\"\",0,IF(FR10<=$B10,1,0))","v":0},null,{"$f":"IF(FS10=\"\",0,IF(FT10<=$B10,1,0))","v":0},null,{"$f":"IF(FU10=\"\",0,IF(FV10<=$B10,1,0))","v":0},null,{"$f":"IF(FW10=\"\",0,IF(FX10<=$B10,1,0))","v":0},null,{"$f":"IF(FY10=\"\",0,IF(FZ10<=$B10,1,0))","v":0},null,{"$f":"IF(GA10=\"\",0,IF(GB10<=$B10,1,0))","v":0},null,{"$f":"IF(GC10=\"\",0,IF(GD10<=$B10,1,0))","v":0},null,{"$f":"IF(GE10=\"\",0,IF(GF10<=$B10,1,0))","v":0},null,{"$f":"IF(GG10=\"\",0,IF(GH10<=$B10,1,0))","v":0},null,{"$f":"IF(GI10=\"\",0,IF(GJ10<=$B10,1,0))","v":0},null,{"$f":"IF(GK10=\"\",0,IF(GL10<=$B10,1,0))","v":0},null,{"$f":"IF(GM10=\"\",0,IF(GN10<=$B10,1,0))","v":0},null,{"$f":"IF(GO10=\"\",0,IF(GP10<=$B10,1,0))","v":0},null,{"$f":"IF(GQ10=\"\",0,IF(GR10<=$B10,1,0))","v":0},null,{"$f":"IF(GS10=\"\",0,IF(GT10<=$B10,1,0))","v":0},null,{"$f":"IF(GU10=\"\",0,IF(GV10<=$B10,1,0))","v":0},null,{"$f":"IF(GW10=\"\",0,IF(GX10<=$B10,1,0))","v":0},null,{"$f":"IF(GY10=\"\",0,IF(GZ10<=$B10,1,0))","v":0}]
[null,null,null,{"$f":"IF(C11=\"\",0,IF(D11<=$B11,1,0))","v":0},null,{"$f":"IF(E11=\"\",0,IF(F11<=$B11,1,0))","v":0},null,{"$f":"IF(G11=\"\",0,IF(H11<=$B11,1,0))","v":0},null,{"$f":"IF(I11=\"\",0,IF(J11<=$B11,1,0))","v":0},null,{"$f":"IF(K11=\"\",0,IF(L11<=$B11,1,0))","v":0},null,{"$f":"IF(M11=\"\",0,IF(N11<=$B11,1,0))","v":0},null,{"$f":"IF(O11=\"\",0,IF(P11<=$B11,1,0))","v":0},null,{"$f":"IF(Q11=\"\",0,IF(R11<=$B11,1,0))","v":0},null,{"$f":"IF(S11=\"\",0,IF(T11<=$B11,1,0))","v":0},null,{"$f":"IF(U11=\"\",0,IF(V11<=$B11,1,0))","v":0},null,{"$f":"IF(W11=\"\",0,IF(X11<=$B11,1,0))","v":0},null,{"$f":"IF(Y11=\"\",0,IF(Z11<=$B11,1,0))","v":0},null,{"$f":"IF(AA11=\"\",0,IF(AB11<=$B11,1,0))","v":0},null,{"$f":"IF(AC11=\"\",0,IF(AD11<=$B11,1,0))","v":0},null,{"$f":"IF(AE11=\"\",0,IF(AF11<=$B11,1,0))","v":0},null,{"$f":"IF(AG11=\"\",0,IF(AH11<=$B11,1,0))","v":0},null,{"$f":"IF(AI11=\"\",0,IF(AJ11<=$B11,1,0))","v":0},null,{"$f":"IF(AK11=\"\",0,IF(AL11<=$B11,1,0))","v":0},null,{"$f":"IF(AM11=\"\",0,IF(AN11<=$B11,1,0))","v":0},null,{"$f":"IF(AO11=\"\",0,IF(AP11<=$B11,1,0))","v":0},null,{"$f":"IF(AQ11=\"\",0,IF(AR11<=$B11,1,0))","v":0},null,{"$f":"IF(AS11=\"\",0,IF(AT11<=$B11,1,0))","v":0},null,{"$f":"IF(AU11=\"\",0,IF(AV11<=$B11,1,0))","v":0},null,{"$f":"IF(AW11=\"\",0,IF(AX11<=$B11,1,0))","v":0},null,{"$f":"IF(AY11=\"\",0,IF(AZ11<=$B11,1,0))","v":0},null,{"$f":"IF(BA11=\"\",0,IF(BB11<=$B11,1,0))","v":0},null,{"$f":"IF(BC11=\"\",0,IF(BD11<=$B11,1,0))","v":0},null,{"$f":"IF(BE11=\"\",0,IF(BF11<=$B11,1,0))","v":0},null,{"$f":"IF(BG11=\"\",0,IF(BH11<=$B11,1,0))","v":0},null,{"$f":"IF(BI11=\"\",0,IF(BJ11<=$B11,1,0))","v":0},null,{"$f":"IF(BK11=\"\",0,IF(BL11<=$B11,1,0))","v":0},null,{"$f":"IF(BM11=\"\",0,IF(BN11<=$B11,1,0))","v":0},null,{"$f":"IF(BO11=\"\",0,IF(BP11<=$B11,1,0))","v":0},null,{"$f":"IF(BQ11=\"\",0,IF(BR11<=$B11,1,0))","v":0},null,{"$f":"IF(BS11=\"\",0,IF(BT11<=$B11,1,0))","v":0},null,{"$f":"IF(BU11=\"\",0,IF(BV11<=$B11,1,0))","v":0},null,{"$f":"IF(BW11=\"\",0,IF(BX11<=$B11,1,0))","v":0},null,{"$f":"IF(BY11=\"\",0,IF(BZ11<=$B11,1,0))","v":0},null,{"$f":"IF(CA11=\"\",0,IF(CB11<=$B11,1,0))","v":0},null,{"$f":"IF(CC11=\"\",0,IF(CD11<=$B11,1,0))","v":0},null,{"$f":"IF(CE11=\"\",0,IF(CF11<=$B11,1,0))","v":0},null,{"$f":"IF(CG11=\"\",0,IF(CH11<=$B11,1,0))","v":0},null,{"$f":"IF(CI11=\"\",0,IF(CJ11<=$B11,1,0))","v":0},null,{"$f":"IF(CK11=\"\",0,IF(CL11<=$B11,1,0))","v":0},null,{"$f":"IF(CM11=\"\",0,IF(CN11<=$B11,1,0))","v":0},null,{"$f":"IF(CO11=\"\",0,IF(CP11<=$B11,1,0))","v":0},null,{"$f":"IF(CQ11=\"\",0,IF(CR11<=$B11,1,0))","v":0},null,{"$f":"IF(CS11=\"\",0,IF(CT11<=$B11,1,0))","v":0},null,{"$f":"IF(CU11=\"\",0,IF(CV11<=$B11,1,0))","v":0},null,{"$f":"IF(CW11=\"\",0,IF(CX11<=$B11,1,0))","v":0},null,{"$f":"IF(CY11=\"\",0,IF(CZ11<=$B11,1,0))","v":0},null,{"$f":"IF(DA11=\"\",0,IF(DB11<=$B11,1,0))","v":0},null,{"$f":"IF(DC11=\"\",0,IF(DD11<=$B11,1,0))","v":0},null,{"$f":"IF(DE11=\"\",0,IF(DF11<=$B11,1,0))","v":0},null,{"$f":"IF(DG11=\"\",0,IF(DH11<=$B11,1,0))","v":0},null,{"$f":"IF(DI11=\"\",0,IF(DJ11<=$B11,1,0))","v":0},null,{"$f":"IF(DK11=\"\",0,IF(DL11<=$B11,1,0))","v":0},null,{"$f":"IF(DM11=\"\",0,IF(DN11<=$B11,1,0))","v":0},null,{"$f":"IF(DO11=\"\",0,IF(DP11<=$B11,1,0))","v":0},null,{"$f":"IF(DQ11=\"\",0,IF(DR11<=$B11,1,0))","v":0},null,{"$f":"IF(DS11=\"\",0,IF(DT11<=$B11,1,0))","v":0},null,{"$f":"IF(DU11=\"\",0,IF(DV11<=$B11,1,0))","v":0},null,{"$f":"IF(DW11=\"\",0,IF(DX11<=$B11,1,0))","v":0},null,{"$f":"IF(DY11=\"\",0,IF(DZ11<=$B11,1,0))","v":0},null,{"$f":"IF(EA11=\"\",0,IF(EB11<=$B11,1,0))","v":0},null,{"$f":"IF(EC11=\"\",0,IF(ED11<=$B11,1,0))","v":0},null,{"$f":"IF(EE11=\"\",0,IF(EF11<=$B11,1,0))","v":0},null,{"$f":"IF(EG11=\"\",0,IF(EH11<=$B11,1,0))","v":0},null,{"$f":"IF(EI11=\"\",0,IF(EJ11<=$B11,1,0))","v":0},null,{"$f":"IF(EK11=\"\",0,IF(EL11<=$B11,1,0))","v":0},null,{"$f":"IF(EM11=\"\",0,IF(EN11<=$B11,1,0))","v":0},null,{"$f":"IF(EO11=\"\",0,IF(EP11<=$B11,1,0))","v":0},null,{"$f":"IF(EQ11=\"\",0,IF(ER11<=$B11,1,0))","v":0},null,{"$f":"IF(ES11=\"\",0,IF(ET11<=$B11,1,0))","v":0},null,{"$f":"IF(EU11=\"\",0,IF(EV11<=$B11,1,0))","v":0},null,{"$f":"IF(EW11=\"\",0,IF(EX11<=$B11,1,0))","v":0},null,{"$f":"IF(EY11=\"\",0,IF(EZ11<=$B11,1,0))","v":0},null,{"$f":"IF(FA11=\"\",0,IF(FB11<=$B11,1,0))","v":0},null,{"$f":"IF(FC11=\"\",0,IF(FD11<=$B11,1,0))","v":0},null,{"$f":"IF(FE11=\"\",0,IF(FF11<=$B11,1,0))","v":0},null,{"$f":"IF(FG11=\"\",0,IF(FH11<=$B11,1,0))","v":0},null,{"$f":"IF(FI11=\"\",0,IF(FJ11<=$B11,1,0))","v":0},null,{"$f":"IF(FK11=\"\",0,IF(FL11<=$B11,1,0))","v":0},null,{"$f":"IF(FM11=\"\",0,IF(FN11<=$B11,1,0))","v":1},null,{"$f":"IF(FO11=\"\",0,IF(FP11<=$B11,1,0))","v":0},null,{"$f":"IF(FQ11=\"\",0,IF(FR11<=$B11,1,0))","v":0},null,{"$f":"IF(FS11=\"\",0,IF(FT11<=$B11,1,0))","v":0},null,{"$f":"IF(FU11=\"\",0,IF(FV11<=$B11,1,0))","v":0},null,{"$f":"IF(FW11=\"\",0,IF(FX11<=$B11,1,0))","v":0},null,{"$f":"IF(FY11=\"\",0,IF(FZ11<=$B11,1,0))","v":0},null,{"$f":"IF(GA11=\"\",0,IF(GB11<=$B11,1,0))","v":0},null,{"$f":"IF(GC11=\"\",0,IF(GD11<=$B11,1,0))","v":0},null,{"$f":"IF(GE11=\"\",0,IF(GF11<=$B11,1,0))","v":0},null,{"$f":"IF(GG11=\"\",0,IF(GH11<=$B11,1,0))","v":0},null,{"$f":"IF(GI11=\"\",0,IF(GJ11<=$B11,1,0))","v":0},null,{"$f":"IF(GK11=\"\",0,IF(GL11<=$B11,1,0))","v":0},null,{"$f":"IF(GM11=\"\",0,IF(GN11<=$B11,1,0))","v":0},null,{"$f":"IF(GO11=\"\",0,IF(GP11<=$B11,1,0))","v":0},null,{"$f":"IF(GQ11=\"\",0,IF(GR11<=$B11,1,0))","v":0},null,{"$f":"IF(GS11=\"\",0,IF(GT11<=$B11,1,0))","v":0},null,{"$f":"IF(GU11=\"\",0,IF(GV11<=$B11,1,0))","v":0},null,{"$f":"IF(GW11=\"\",0,IF(GX11<=$B11,1,0))","v":0},null,{"$f":"IF(GY11=\"\",0,IF(GZ11<=$B11,1,0))","v":0}]
[null,null,null,{"$f":"IF(C12=\"\",0,IF(D12<=$B12,1,0))","v":0},null,{"$f":"IF(E12=\"\",0,IF(F12<=$B12,1,0))","v":0},null,{"$f":"IF(G12=\"\",0,IF(H12<=$B12,1,0))","v":0},null,{"$f":"IF(I12=\"\",0,IF(J12<=$B12,1,0))","v":0},null,{"$f":"IF(K12=\"\",0,IF(L12<=$B12,1,0))","v":0},null,{"$f":"IF(M12=\"\",0,IF(N12<=$B12,1,0))","v":0},null,{"$f":"IF(O12=\"\",0,IF(P12<=$B12,1,0))","v":0},null,{"$f":"IF(Q12=\"\",0,IF(R12<=$B12,1,0))","v":0},null,{"$f":"IF(S12=\"\",0,IF(T12<=$B12,1,0))","v":1},null,{"$f":"IF(U12=\"\",0,IF(V12<=$B12,1,0))","v":1},null,{"$f":"IF(W12=\"\",0,IF(X12<=$B12,1,0))","v":0},null,{"$f":"IF(Y12=\"\",0,IF(Z12<=$B12,1,0))","v":0},null,{"$f":"IF(AA12=\"\",0,IF(AB12<=$B12,1,0))","v":0},null,{"$f":"IF(AC12=\"\",0,IF(AD12<=$B12,1,0))","v":1},null,{"$f":"IF(AE12=\"\",0,IF(AF12<=$B12,1,0))","v":1},null,{"$f":"IF(AG12=\"\",0,IF(AH12<=$B12,1,0))","v":1},null,{"$f":"IF(AI12=\"\",0,IF(AJ12<=$B12,1,0))","v":1},null,{"$f":"IF(AK12=\"\",0,IF(AL12<=$B12,1,0))","v":1},null,{"$f":"IF(AM12=\"\",0,IF(AN12<=$B12,1,0))","v":0},null,{"$f":"IF(AO12=\"\",0,IF(AP12<=$B12,1,0))","v":0},null,{"$f":"IF(AQ12=\"\",0,IF(AR12<=$B12,1,0))","v":0},null,{"$f":"IF(AS12=\"\",0,IF(AT12<=$B12,1,0))","v":1},null,{"$f":"IF(AU12=\"\",0,IF(AV12<=$B12,1,0))","v":0},null,{"$f":"IF(AW12=\"\",0,IF(AX12<=$B12,1,0))","v":1},null,{"$f":"IF(AY12=\"\",0,IF(AZ12<=$B12,1,0))","v":0},null,{"$f":"IF(BA12=\"\",0,IF(BB12<=$B12,1,0))","v":0},null,{"$f":"IF(BC12=\"\",0,IF(BD12<=$B12,1,0))","v":0},null,{"$f":"IF(BE12=\"\",0,IF(BF12<=$B12,1,0))","v":0},null,{"$f":"IF(BG12=\"\",0,IF(BH12<=$B12,1,0))","v":0},null,{"$f":"IF(BI12=\"\",0,IF(BJ12<=$B12,1,0))","v":0},null,{"$f":"IF(BK12=\"\",0,IF(BL12<=$B12,1,0))","v":0},null,{"$f":"IF(BM12=\"\",0,IF(BN12<=$B12,1,0))","v":1},null,{"$f":"IF(BO12=\"\",0,IF(BP12<=$B12,1,0))","v":1},null,{"$f":"IF(BQ12=\"\",0,IF(BR12<=$B12,1,0))","v":0},null,{"$f":"IF(BS12=\"\",0,IF(BT12<=$B12,1,0))","v":0},null,{"$f":"IF(BU12=\"\",0,IF(BV12<=$B12,1,0))","v":0},null,{"$f":"IF(BW12=\"\",0,IF(BX12<=$B12,1,0))","v":0},null,{"$f":"IF(BY12=\"\",0,IF(BZ12<=$B12,1,0))","v":0},null,{"$f":"IF(CA12=\"\",0,IF(CB12<=$B12,1,0))","v":0},null,{"$f":"IF(CC12=\"\",0,IF(CD12<=$B12,1,0))","v":0},null,{"$f":"IF(CE12=\"\",0,IF(CF12<=$B12,1,0))","v":0},null,{"$f":"IF(CG12=\"\",0,IF(CH12<=$B12,1,0))","v":0},null,{"$f":"IF(CI12=\"\",0,IF(CJ12<=$B12,1,0))","v":0},null,{"$f":"IF(CK12=\"\",0,IF(CL12<=$B12,1,0))","v":0},null,{"$f":"IF(CM12=\"\",0,IF(CN12<=$B12,1,0))","v":0},null,{"$f":"IF(CO12=\"\",0,IF(CP12<=$B12,1,0))","v":0},null,{"$f":"IF(CQ12=\"\",0,IF(CR12<=$B12,1,0))","v":0},null,{"$f":"IF(CS12=\"\",0,IF(CT12<=$B12,1,0))","v":0},null,{"$f":"IF(CU12=\"\",0,IF(CV12<=$B12,1,0))","v":0},null,{"$f":"IF(CW12=\"\",0,IF(CX12<=$B12,1,0))","v":0},null,{"$f":"IF(CY12=\"\",0,IF(CZ12<=$B12,1,0))","v":0},null,{"$f":"IF(DA12=\"\",0,IF(DB12<=$B12,1,0))","v":0},null,{"$f":"IF(DC12=\"\",0,IF(DD12<=$B12,1,0))","v":0},null,{"$f":"IF(DE12=\"\",0,IF(DF12<=$B12,1,0))","v":0},null,{"$f":"IF(DG12=\"\",0,IF(DH12<=$B12,1,0))","v":1},null,{"$f":"IF(DI12=\"\",0,IF(DJ12<=$B12,1,0))","v":0},null,{"$f":"IF(DK12=\"\",0,IF(DL12<=$B12,1,0))","v":0},null,{"$f":"IF(DM12=\"\",0,IF(DN12<=$B12,1,0))","v":0},null,{"$f":"IF(DO12=\"\",0,IF(DP12<=$B12,1,0))","v":0},null,{"$f":"IF(DQ12=\"\",0,IF(DR12<=$B12,1,0))","v":1},null,{"$f":"IF(DS12=\"\",0,IF(DT12<=$B12,1,0))","v":1},null,{"$f":"IF(DU12=\"\",0,IF(DV12<=$B12,1,0))","v":1},null,{"$f":"IF(DW12=\"\",0,IF(DX12<=$B12,1,0))","v":0},null,{"$f":"IF(DY12=\"\",0,IF(DZ12<=$B12,1,0))","v":0},null,{"$f":"IF(EA12=\"\",0,IF(EB12<=$B12,1,0))","v":1},null,{"$f":"IF(EC12=\"\",0,IF(ED12<=$B12,1,0))","v":1},null,{"$f":"IF(EE12=\"\",0,IF(EF12<=$B12,1,0))","v":1},null,{"$f":"IF(EG12=\"\",0,IF(EH12<=$B12,1,0))","v":1},null,{"$f":"IF(EI12=\"\",0,IF(EJ12<=$B12,1,0))","v":1},null,{"$f":"IF(EK12=\"\",0,IF(EL12<=$B12,1,0))","v":0},null,{"$f":"IF(EM12=\"\",0,IF(EN12<=$B12,1,0))","v":0},null,{"$f":"IF(EO12=\"\",0,IF(EP12<=$B12,1,0))","v":0},null,{"$f":"IF(EQ12=\"\",0,IF(ER12<=$B12,1,0))","v":0},null,{"$f":"IF(ES12=\"\",0,IF(ET12<=$B12,1,0))","v":0},null,{"$f":"IF(EU12=\"\",0,IF(EV12<=$B12,1,0))","v":0},null,{"$f":"IF(EW12=\"\",0,IF(EX12<=$B12,1,0))","v":0},null,{"$f":"IF(EY12=\"\",0,IF(EZ12<=$B12,1,0))","v":1},null,{"$f":"IF(FA12=\"\",0,IF(FB12<=$B12,1,0))","v":1},null,{"$f":"IF(FC12=\"\",0,IF(FD12<=$B12,1,0))","v":0},null,{"$f":"IF(FE12=\"\",0,IF(FF12<=$B12,1,0))","v":0},null,{"$f":"IF(FG12=\"\",0,IF(FH12<=$B12,1,0))","v":0},null,{"$f":"IF(FI12=\"\",0,IF(FJ12<=$B12,1,0))","v":1},null,{"$f":"IF(FK12=\"\",0,IF(FL12<=$B12,1,0))","v":1},null,{"$f":"IF(FM12=\"\",0,IF(FN12<=$B12,1,0))","v":0},null,{"$f":"IF(FO12=\"\",0,IF(FP12<=$B12,1,0))","v":0},null,{"$f":"IF(FQ12=\"\",0,IF(FR12<=$B12,1,0))","v":0},null,{"$f":"IF(FS12=\"\",0,IF(FT12<=$B12,1,0))","v":0},null,{"$f":"IF(FU12=\"\",0,IF(FV12<=$B12,1,0))","v":0},null,{"$f":"IF(FW12=\"\",0,IF(FX12<=$B12,1,0))","v":0},null,{"$f":"IF(FY12=\"\",0,IF(FZ12<=$B12,1,0))","v":1},null,{"$f":"IF(GA12=\"\",0,IF(GB12<=$B12,1,0))","v":0},null,{"$f":"IF(GC12=\"\",0,IF(GD12<=$B12,1,0))","v":0},null,{"$f":"IF(GE12=\"\",0,IF(GF12<=$B12,1,0))","v":0},null,{"$f":"IF(GG12=\"\",0,IF(GH12<=$B12,1,0))","v":0},null,{"$f":"IF(GI12=\"\",0,IF(GJ12<=$B12,1,0))","v":0},null,{"$f":"IF(GK12=\"\",0,IF(GL12<=$B12,1,0))","v":0},null,{"$f":"IF(GM12=\"\",0,IF(GN12<=$B12,1,0))","v":0},null,{"$f":"IF(GO12=\"\",0,IF(GP12<=$B12,1,0))","v":0},null,{"$f":"IF(GQ12=\"\",0,IF(GR12<=$B12,1,0))","v":0},null,{"$f":"IF(GS12=\"\",0,IF(GT12<=$B12,1,0))","v":0},null,{"$f":"IF(GU12=\"\",0,IF(GV12<=$B12,1,0))","v":0},null,{"$f":"IF(GW12=\"\",0,IF(GX12<=$B12,1,0))","v":1},null,{"$f":"IF(GY12=\"\",0,IF(GZ12<=$B12,1,0))","v":0}]
[null,null,null,{"$f":"SUM(D13:D15)","v":0},null,{"$f":"SUM(F13:F15)","v":0},null,{"$f":"SUM(H13:H15)","v":0},null,{"$f":"SUM(J13:J15)","v":0},null,{"$f":"SUM(L13:L15)","v":0},null,{"$f":"SUM(N13:N15)","v":0},null,{"$f":"SUM(P13:P15)","v":0},null,{"$f":"SUM(R13:R15)","v":0},null,{"$f":"SUM(T13:T15)","v":1},null,{"$f":"SUM(V13:V15)","v":1},null,{"$f":"SUM(X13:X15)","v":0},null,{"$f":"SUM(Z13:Z15)","v":0},null,{"$f":"SUM(AB13:AB15)","v":0},null,{"$f":"SUM(AD13:AD15)","v":1},null,{"$f":"SUM(AF13:AF15)","v":1},null,{"$f":"SUM(AH13:AH15)","v":1},null,{"$f":"SUM(AJ13:AJ15)","v":1},null,{"$f":"SUM(AL13:AL15)","v":1},null,{"$f":"SUM(AN13:AN15)","v":0},null,{"$f":"SUM(AP13:AP15)","v":0},null,{"$f":"SUM(AR13:AR15)","v":0},null,{"$f":"SUM(AT13:AT15)","v":1},null,{"$f":"SUM(AV13:AV15)","v":0},null,{"$f":"SUM(AX13:AX15)","v":1},null,{"$f":"SUM(AZ13:AZ15)","v":0},null,{"$f":"SUM(BB13:BB15)","v":0},null,{"$f":"SUM(BD13:BD15)","v":0},null,{"$f":"SUM(BF13:BF15)","v":0},null,{"$f":"SUM(BH13:BH15)","v":0},null,{"$f":"SUM(BJ13:BJ15)","v":0},null,{"$f":"SUM(BL13:BL15)","v":0},null,{"$f":"SUM(BN13:BN15)","v":1},null,{"$f":"SUM(BP13:BP15)","v":1},null,{"$f":"SUM(BR13:BR15)","v":0},null,{"$f":"SUM(BT13:BT15)","v":0},null,{"$f":"SUM(BV13:BV15)","v":0},null,{"$f":"SUM(BX13:BX15)","v":0},null,{"$f":"SUM(BZ13:BZ15)","v":0},null,{"$f":"SUM(CB13:CB15)","v":0},null,{"$f":"SUM(CD13:CD15)","v":0},null,{"$f":"SUM(CF13:CF15)","v":0},null,{"$f":"SUM(CH13:CH15)","v":0},null,{"$f":"SUM(CJ13:CJ15)","v":0},null,{"$f":"SUM(CL13:CL15)","v":0},null,{"$f":"SUM(CN13:CN15)","v":0},null,{"$f":"SUM(CP13:CP15)","v":0},null,{"$f":"SUM(CR13:CR15)","v":0},null,{"$f":"SUM(CT13:CT15)","v":0},null,{"$f":"SUM(CV13:CV15)","v":0},null,{"$f":"SUM(CX13:CX15)","v":0},null,{"$f":"SUM(CZ13:CZ15)","v":0},null,{"$f":"SUM(DB13:DB15)","v":0},null,{"$f":"SUM(DD13:DD15)","v":0},null,{"$f":"SUM(DF13:DF15)","v":0},null,{"$f":"SUM(DH13:DH15)","v":1},null,{"$f":"SUM(DJ13:DJ15)","v":0},null,{"$f":"SUM(DL13:DL15)","v":0},null,{"$f":"SUM(DN13:DN15)","v":0},null,{"$f":"SUM(DP13:DP15)","v":0},null,{"$f":"SUM(DR13:DR15)","v":1},null,{"$f":"SUM(DT13:DT15)","v":1},null,{"$f":"SUM(DV13:DV15)","v":1},null,{"$f":"SUM(DX13:DX15)","v":0},null,{"$f":"SUM(DZ13:DZ15)","v":0},null,{"$f":"SUM(EB13:EB15)","v":1},null,{"$f":"SUM(ED13:ED15)","v":1},null,{"$f":"SUM(EF13:EF15)","v":1},null,{"$f":"SUM(EH13:EH15)","v":1},null,{"$f":"SUM(EJ13:EJ15)","v":1},null,{"$f":"SUM(EL13:EL15)","v":0},null,{"$f":"SUM(EN13:EN15)","v":0},null,{"$f":"SUM(EP13:EP15)","v":0},null,{"$f":"SUM(ER13:ER15)","v":0},null,{"$f":"SUM(ET13:ET15)","v":0},null,{"$f":"SUM(EV13:EV15)","v":0},null,{"$f":"SUM(EX13:EX15)","v":0},null,{"$f":"SUM(EZ13:EZ15)","v":1},null,{"$f":"SUM(FB13:FB15)","v":1},null,{"$f":"SUM(FD13:FD15)","v":0},null,{"$f":"SUM(FF13:FF15)","v":0},null,{"$f":"SUM(FH13:FH15)","v":0},null,{"$f":"SUM(FJ13:FJ15)","v":1},null,{"$f":"SUM(FL13:FL15)","v":1},null,{"$f":"SUM(FN13:FN15)","v":1},null,{"$f":"SUM(FP13:FP15)","v":0},null,{"$f":"SUM(FR13:FR15)","v":0},null,{"$f":"SUM(FT13:FT15)","v":0},null,{"$f":"SUM(FV13:FV15)","v":0},null,{"$f":"SUM(FX13:FX15)","v":0},null,{"$f":"SUM(FZ13:FZ15)","v":1},null,{"$f":"SUM(GB13:GB15)","v":0},null,{"$f":"SUM(GD13:GD15)","v":0},null,{"$f":"SUM(GF13:GF15)","v":0},null,{"$f":"SUM(GH13:GH15)","v":0},null,{"$f":"SUM(GJ13:GJ15)","v":0},null,{"$f":"SUM(GL13:GL15)","v":0},null,{"$f":"SUM(GN13:GN15)","v":0},null,{"$f":"SUM(GP13:GP15)","v":0},null,{"$f":"SUM(GR13:GR15)","v":0},null,{"$f":"SUM(GT13:GT15)","v":0},null,{"$f":"SUM(GV13:GV15)","v":0},null,{"$f":"SUM(GX13:GX15)","v":1},null,{"$f":"SUM(GZ13:GZ15)","v":0}]

{"sheet":"Services Délégués","index":9,"n_rows":5,"n_cols":30,"rows_kept":5,"cut":false,"hidden":false,"merged":[[1,28,2,29],[0,0,0,21],[1,0,1,5],[1,6,1,17],[2,0,2,1],[2,2,2,3],[2,4,2,5],[2,6,2,7],[2,8,2,9],[2,10,2,11],[2,12,2,13],[2,14,2,15],[2,16,2,17],[2,18,2,19],[1,18,1,25],[2,24,2,25],[2,20,2,21],[2,22,2,23],[1,26,2,27]]}
["Retour à l'accueil"]
["EAU",null,null,null,null,null,"ASSAINISSEMENT",null,null,null,null,null,null,null,null,null,null,null,"SERVICES MARCHANDS",null,null,null,null,null,null,null,"PANNEAUX PUBLICITAIRES",null,"TOTAL"]
["AEV",null,"FPM",null,"PEA",null,"Entretien des voies urbaines",null,"Eclairage public",null,"Collecte et traitement des déchets",null,"Evacuation des eaux usées",null,"Gestion des cimétieres",null,"Gestion des espaces verts",null,"Gestion des marchés",null,"Gestion des abattoirs",null,"Promotion du tourisme",null,"Gestions des gares routieres"]
["PREVUES","DELEGUEES","PREVUES","DELEGUEES","PREVUES","DELEGUEES","PREVUS","DELEGUES","PREVUS","DELEGUES","PREVUS","DELEGUES","PREVUS","DELEGUES","PREVUS","DELEGUES","PREVUS","DELEGUES","PREVUS","DELEGUES","PREVUS","DELEGUES","PREVUS","DELEGUES","PREVUS","DELEGUES","PREVUS","DELEGUES","PREVUS","DELEGUES"]
[null,null,null,null,null,null,19,19,0,0,8,8,null,null,3,3,3,3,0,0,null,null,null,null,0,0,27,27,{"$f":"SUM(A5,C5,E5,G5,I5,K5,M5,O5,Q5,S5,U5,W5,Y5,AA5)","v":60},{"$f":"SUM(B5,D5,F5,H5,J5,L5,N5,P5,R5,T5,V5,X5,Z5,AB5)","v":60}]

{"sheet":"Autres données","index":10,"n_rows":37,"n_cols":4,"rows_kept":37,"cut":false,"hidden":false,"merged":[[27,0,27,1],[31,0,32,1],[33,0,34,1],[35,0,36,1],[20,0,21,1],[22,0,23,1],[24,0,25,1],[28,0,30,1],[0,0,0,3],[1,0,1,2],[18,0,18,1],[19,0,19,1],[26,0,26,1],[2,0,3,1],[4,0,5,1],[6,0,7,1],[8,0,9,1],[14,0,17,1],[10,0,13,0],[10,1,12,1],[13,1,13,2]]}
["Retour à l'accueil"]
["Données à collecter",null,null,"Valeurs"]
["Fonctionalité des services de la mairie",null,"Nombre de services prévus.",45]
[null,null,"Nombre de services fonctionnels",45]
["Manuel de procédure",null,"Existence du manuel de procédure","OUI"]
[null,null,"Manuel de procédure actualisé.","NON"]
["Evaluation du personnel",null,"Nombre de personnes évalué",1103]
[null,null,"Effectif du personnel",1112]
["Adequation profil/poste",null,"Nombre de postes occupés dans la commune",164]
[null,null,"Nombre d'agents dont le profil correspond au poste occupé",164]
["Données Foncieres","Commission de Gestion foncière (COGEF)","Existence de la COGEF","OUI"]
[null,null,"Nombre d'Attestation de  Détention Coutumiere (ADC) demandé"]
[null,null,"Nombre d'Attestation de  Détention Coutumiere (ADC) traité"]
[null,"Nombre de contentieux fonciers impliquant la commune",null,114]
["Système d'information ",null,"Existence d’un système de classement et d’archivage","OUI"]
[null,null,"Existence d’une personne en charge du classement des archivages","OUI"]
[null,null,"Existence d’un local dédié à l’archivage","OUI"]
[null,null,"Existence de documents archivés.","OUI"]
["Nombre de délégations",null,"Nombre de délégations de signature pris.",3]
["Attributions  de pouvoir",null,"Nombre d'attributions  de pouvoir pris.",8]
["Séances de reddition de comptes",null,"Nombre   de séances tenues",2]
[null,null,"Nombre de séances prévues.",2]
["Activités spécifiques en faveur des femmes ",null,"Nombre  d’activités spécifiques réalisées en faveur des femmes ",2]
[null,null,"Nombre d’activités réalisées dans le PTA",12]
["Informations sur les prestations de la commune",null,"Existence d’un lieu publique dédié à l'informations sur les prestations de la commune","OUI"]
[null,null,"Existence d'une personne en charge de l'information","OUI"]
["SDAC en cours de validité",null,"Existence  ou non d'un SDAC ","NON"]
["PDC en cours de validité",null,"Existence ou non d’un PDC","OUI"]
["Suivi évaluation des PTA/PAI/PAD",null,"Nombre de séances de suivi évaluation des PTA",3]
[null,null,"Nombre de séances de suivi évaluation des PAI",3]
[null,null,"Nombre de séances de suivi évaluation des PAD"]
["Infrastructures économiques et marchandes",null,"Nombre réalisées en année 2019",0]
[null,null,"Nombre réalisées en année 2018",0]
["TBS",null,"Existence  d’un TBS actualisé ","OUI"]
[null,null,"Date d’actualisation","2017-10-25"]
["Coopération décentralisée",null,"Nombre  d’accord actif",7]
[null,null,"Nombre d’activités réalisées provenants de ces accords ",4]

{"sheet":"Récapitulatif","index":11,"n_rows":93,"n_cols":6,"rows_kept":93,"cut":false,"hidden":true,"merged":[[91,0,91,1],[92,0,92,1],[79,0,79,1],[80,0,80,1],[85,0,85,1],[88,0,88,1],[90,0,90,1],[86,0,86,1],[87,0,87,1],[89,0,89,1],[84,0,84,1],[35,0,37,0],[78,0,78,1],[81,0,81,1],[82,0,82,1],[83,0,83,1],[73,0,73,1],[74,0,74,1],[75,0,75,1],[76,0,76,1],[77,0,77,1],[68,0,68,1],[69,0,69,1],[70,0,70,1],[71,0,71,1],[72,0,72,1],[63,0,63,1],[64,0,64,1],[65,0,65,1],[66,0,66,1],[67,0,67,1],[58,0,58,1],[59,0,59,1],[60,0,60,1],[61,0,61,1],[62,0,62,1],[53,0,53,1],[54,0,54,1],[55,0,55,1],[56,0,56,1],[57,0,57,1],[48,0,48,1],[49,0,49,1],[50,0,50,1],[51,0,51,1],[52,0,52,1],[43,0,43,1],[44,0,44,1],[45,0,45,1],[46,0,46,1],[47,0,47,1],[38,0,38,1],[39,0,39,1],[40,0,40,1],[41,0,41,1],[42,0,42,1],[30,0,30,1],[31,0,31,1],[32,0,32,1],[33,0,33,1],[34,0,34,1],[25,0,25,1],[26,0,26,1],[27,0,27,1],[28,0,28,1],[29,0,29,1],[20,0,20,1],[21,0,21,1],[22,0,22,1],[23,0,23,1],[24,0,24,1],[15,0,15,1],[16,0,16,1],[17,0,17,1],[18,0,18,1],[19,0,19,1],[10,0,10,1],[11,0,11,1],[12,0,12,1],[13,0,13,1],[14,0,14,1],[5,0,5,1],[6,0,6,1],[7,0,7,1],[8,0,8,1],[9,0,9,1],[0,0,0,1],[1,0,1,1],[2,0,2,1],[3,0,3,1],[4,0,4,1]]}
["Données à traiter",null,"Valeurs"]
["Nombre de sessions ordinaires tenues",null,{"$f":"COUNTA(CC!C6:C9)","v":4}]
["Nombre de services prévus.",null,{"$f":"'Autres données'!D3","v":45}]
["Nombre de services existant doté en personnel.",null,{"$f":"'Autres données'!D4","v":45}]
["Nombre d’élus du conseil communal",null,{"$f":"CC!D4","v":49}]
["Nombre de conseillers présents à chaque conseil communal",null,{"$f":"SUMIF(CC!C6:C9,\"<>\",CC!B6:B9)","v":169}]
["Existence du manuel de procédure actualisé.",null,{"$f":"IF(OR('Autres données'!D5=\"NON\",'Autres données'!D5=\"\"),0,IF('Autres données'!D6=\"OUI\",1,0.5))","v":0.5}]
["Nombre de fiches d’évaluation du personnel évalué dans l’année.",null,{"$f":"'Autres données'!D7","v":1103}]
["Nombre de personnes à évaluer.",null,{"$f":"'Autres données'!D8","v":1112}]
["Nombre de commissions permanentes existantes.",null,{"$f":"CP!C15","v":8}]
["Nombre de sessions des commissions permamentes",null,{"$f":"SUM(CP!D15,CP!G15,CP!J15,CP!M15,CP!P15,CP!V15,CP!Y15,CP!AB15,CP!AE15,CP!AH15,CP!AK15)","v":8}]
["Nombre présents commission permanente",null,{"$f":"SUM(CP!D16,CP!G16,CP!J16,CP!M16,CP!P16,CP!V16,CP!Y16,CP!AB16,CP!AE16,CP!AH16,CP!AK16)","v":35}]
["Nombre de propositions formulées par les commissions permanentes",null,{"$f":"SUM(CP!E16,CP!H16,CP!K16,CP!N16,CP!Q16,CP!T16,CP!W16,CP!Z16,CP!AC16,CP!AF16,CP!AI16,CP!AL16)","v":16}]
["Nombre de propositions formulées par les commissions permanentes réalisées.",null,{"$f":"SUM(CP!F16,CP!I16,CP!L16,CP!O16,CP!R16,CP!U16,CP!X16,CP!AA16,CP!AD16,CP!AG16,CP!AJ16,CP!AM16)","v":16}]
["Nombre de postes occupés",null,{"$f":"'Autres données'!D9","v":164}]
["Nombre de postes occupés correspondant au profil recherché",null,{"$f":"'Autres données'!D10","v":164}]
["Existence ou non d’un système de documentation et d’archivage",null,{"$f":"IF('Autres données'!D15=\"OUI\",1,0)","v":1}]
["Existence ou non d’une personne en charge de la documentation et d’archivage",null,{"$f":"IF('Autres données'!D16=\"OUI\",1,0)","v":1}]
["Existence ou non d’un local dédié à la documentation et d’archivage",null,{"$f":"IF('Autres données'!D17=\"OUI\",1,0)","v":1}]
["Existence ou non de document archivés.",null,{"$f":"IF('Autres données'!D18=\"OUI\",1,0)","v":1}]
["Nombre de services publics susceptibles d’être délégués",null,{"$f":"'Services Délégués'!AC5","v":60}]
["Nombre de services publics délégués dans l’année",null,{"$f":"'Services Délégués'!AD5","v":60}]
["Nombre total de rapports produits dans l’année",null,{"$f":"COUNTIF(CC!F6:F9,\"=OUI\")","v":4}]
["Nombre total de rapports à produire dans l’année.",null,{"$f":"C2","v":4},"nombre de session dans l'année =4"]
["Nombre de réunions de la municipalité ",null,{"$f":"CC!D3","v":7}]
["Nombre de réunions prévues",null,12,"limité à 12"]
["Nombre total de sessions de conseils d’arrondissement tenues au cours de l’année",null,{"$f":"SUM(CA!B3:B50)","v":158},"somme dans CA"]
["Nombre d’arrondissements",null,13]
["Nombre total de réunions de conseils de village tenues au cours de l’année",null,{"$f":"SUM(CV!C5:C100)","v":366},"somme d&ns CV"]
["Nombre de villages",null,166]
["Nombre de documents ou d’arrêtés  portant délégation de signature pris.",null,{"$f":"'Autres données'!D19","v":3}]
["Nombre de document ou arrêtés portant délégation de pouvoir pris.",null,{"$f":"'Autres données'!D20","v":8}]
["Montant du budget prévisionnel",null,{"$f":"Budget!A5","v":25919045527}]
["Montant du Budget Consommé",null,{"$f":"E37+C39","v":14027455607}]
["Recette fiscales previsionnelles",null,{"$f":"Budget!B5","v":10868400000}]
["Dépenses d'investissement","Ressources propres",{"$f":"Budget!D5","v":3454094982}]
[null,"Investissement provenant de la coopération décentralisée",{"$f":"Budget!E5","v":0},null,{"$f":"SUM(C36:C38)","v":3998773480}]
[null,"Autres ressources",{"$f":"Budget!F5","v":544678498}]
["Dépenses totales de fonctionnement",null,{"$f":"Budget!G5","v":10028682127}]
["Dépenses d'entretien des équipements et ouvrages",null,{"$f":"Budget!H5","v":322069313}]
["Montant des ressources propres de l'année n-1",null,{"$f":"Budget!K5","v":13526674006}]
["Montant des ressources propres de l'année n",null,{"$f":"Budget!L5","v":12498174371}]
["Recettes fiscales recouvrées",null,{"$f":"Budget!I5","v":11275080002}]
["Montant des cotisations versées à échéance",null,{"$f":"Budget!M5","v":20345699}]
["Montant des cotisations dues à échéance",null,{"$f":"Budget!N5","v":32000000}]
["Nombre de marchés conclus dans l’année",null,{"$f":"Marchés!E5","v":103}]
[{"$f":"Marchés!A3","v":"Plan de passation des marchés publics publiés"},null,{"$f":"IF(Marchés!E3=\"OUI\",1,0)","v":1}]
[{"$f":"Marchés!A4:D4","v":"Nombre de marchés publics passés hors plan de passation des marchés "},null,{"$f":"Marchés!E4","v":0},{"$f":"IF(Marchés!E4=\"\",0,IF(Marchés!E4=0,1,0))","v":1}]
["Nombre de marchés conclus dans l’année et ayant respecté les procédures.",null,{"$f":"Marchés!E6","v":103}]
["Délai moyen de passation des marchés publics communaux",null,{"$f":"IF(C46=0,0,D50/C46)","v":0.26213592233009708},{"$f":"SUM(Marchés!$D$16:$QG$16)","v":27}]
["Nombre de fois où les relevés des délibérations affichés ",null,{"$f":"COUNTA(CC!E6:E9)","v":4}]
["Délai d’affichage",null,{"$f":"SUM(CC!I6:I9)/C2","v":1},"8 jours maxi aprs la fin de la session"]
["Nombre de séances de reddition de comptes",null,{"$f":"'Autres données'!D21","v":2}]
["Nombre de séances de reddition de comptes prévus.",null,{"$f":"'Autres données'!D22","v":2}]
["Nombre d’actions spécifiques réalisées en faveur des femmes",null,{"$f":"'Autres données'!D23","v":2}]
["Nombre d’actions spécifiques réalisées dans le PTA",null,{"$f":"'Autres données'!D24","v":12}]
[{"$f":"'Autres données'!C25","v":"Existence d’un lieu publique dédié à l'informations sur les prestations de la commune"},null,{"$f":"IF('Autres données'!D25=\"OUI\",1,0)","v":1}]
[{"$f":"'Autres données'!C26","v":"Existence d'une personne en charge de l'information"},null,{"$f":"IF('Autres données'!D26=\"OUI\",1,0)","v":1}]
["Nombre de cadres de concertation.",null,{"$f":"COUNTA('Cadres de Concertation'!F6:L6)","v":6},{"$f":"IF(C59<=0,0,IF(C59>3,1,C59/4))","v":1}]
["Nombre moyen de réunions du cadre de concertation tenu",null,{"$f":"SUM('Cadres de Concertation'!F6:L6)/C59","v":1.8333333333333333},{"$f":"IF(C60<=0.5,0,IF(C60<1.5,0.25,IF(C60<2.5,0.5,IF(C60<4,0.75,1))))","v":0.5}]
["Existence ou non d’un SDAC.",null,{"$f":"IF('Autres données'!D27=\"OUI\",1,0)","v":0}]
["Existence ou non d’un PDC",null,{"$f":"IF('Autres données'!D28=\"OUI\",1,0)","v":1}]
["Montant PAI prévision",null,{"$f":"Budget!C5","v":10549668054}]
["Montant PAI réalisé",null,{"$f":"Budget!J5","v":5321560706}]
["Nombre de séances de suivi évaluation des PTA/PAI/PAD",null,{"$f":"SUM('Autres données'!D29:D31)","v":6}]
["Nombre d’infrastructures économiques et marchandes réalisées en année n",null,{"$f":"'Autres données'!D32","v":0}]
["Nombre d’infrastructures économiques et marchandes réalisées en année n-1",null,{"$f":"'Autres données'!D33","v":0}]
["Nombre d'EPC demandé (village)",null,{"$f":"SUM(CV!D5:D191)","v":0},null,null,"somme"]
["Nombre d'EPC réalisé (Village)",null,{"$f":"SUM(CV!E5:E191)","v":0}]
["Nombre de ADC demandé (Commune-Autre données)",null,{"$f":"'Autres données'!D12","v":""}]
["Nombre de ADC réalisé (Commune-Autre données)",null,{"$f":"'Autres données'!D13","v":""}]
["Existence ou inexistence d’un tableau de bord social actualisé ",null,{"$f":"IF('Autres données'!D34=\"OUI\",1,0)","v":1}]
["Date d’actualisation du tableau de bord social",null,{"$f":"'Autres données'!D35","v":"2017-10-25"}]
["Existence d'un tableau de bord",null,{"$f":"'Autres données'!D34","v":"OUI"}]
["Nombre  d’ accord de coopération décentralisée.",null,{"$f":"IF('Autres données'!D36<1,0,IF('Autres données'!D36=1,0.5,1))","v":1}]
["Nombre d’activités des accords de coopération décentralisées réalisées.",null,{"$f":"IF('Autres données'!D37<1,0,IF('Autres données'!D37<3,0.5,1))","v":1}]
["Nombre de conflits fonciers impliquant la commune",null,{"$f":"IF('Autres données'!D14=\"\",\"\",'Autres données'!D14)","v":114},{"$f":"IF(C77=\"\",0,IF(C77=0,1,IF(C77<=3,0.75,IF(C77<=8,0.5,IF(C77<=15,0.25,0)))))","v":0}]
["Nombre de participation du maire ou de son représentant au CDCC au cours de l’année",null,{"$f":"COUNTIF(Tutelle!B5:B6,\">0\")","v":2},"feuille tutelle (compter le nombre de lignes 5 ou 6 rempli"]
["Nombre de CDCC tenus dans l’année.",null,{"$f":"COUNTA(Tutelle!C5:C6)","v":2},"fixer à 2"]
["Nombre total de présence du maire ou de ses adjoints au CDCC",null,{"$f":"SUMIF(Tutelle!C5:C6,\"<>\",Tutelle!B5:B6)","v":32}]
["Nombre total attendu (Maire et ses adjoints) pour toutes les sessions",null,{"$f":"C79*Tutelle!C3","v":32}]
["Nombre d’actes communaux conformes en une année",null,{"$f":"Tutelle!D8","v":210}]
["Nombre d’actes communaux soumis à la tutelle en un an",null,{"$f":"Tutelle!D9","v":210}]
["Le budget est transmis ou pas.",null,{"$f":"IF(Tutelle!H2=\"TRANSMIS\",1,0)","v":1}]
["Délai de transmission du budget après adoption par le conseil communal",null,{"$f":"IF(Budget!Q5=\"\",0,IF(Budget!Q5<=DATE(Acceuil!P12,3,31),1,0))","v":0}]
["Délai d'approbation du budget par la tutelle",null,{"$f":"IF(OR(Tutelle!H4=\"\",Tutelle!H5=\"\"),0,IF(Tutelle!H5<=EDATE(Tutelle!H4,1),1,0))","v":1},"si<1mois, 1, 0 sinon"]
["Le compte administratif est  transmis ou pas.",null,{"$f":"IF(Tutelle!H6=\"TRANSMIS\",1,0)","v":1}]
["Délai de transmission du compte administratif  après adoption par le conseil communal",null,{"$f":"IF(Tutelle!H7=\"\",0,IF(Tutelle!H7<=DATE(Acceuil!P12+1,6,30),1,0))","v":1}]
["Délai d'approbation du compte administratif  par la tutelle",null,{"$f":"IF(OR(Tutelle!H8=\"\",Tutelle!H9=\"\"),0,IF(Tutelle!H9<=EDATE(Tutelle!H8,1),1,0))","v":1}]
["Nombre de réunions du cadre de concertation  prévu (Mairie + SDE)",null,{"$f":"'Cadres de Concertation'!C5","v":2}]
["Nombre de réunions du cadre de concertation  tenu (Mairie + SDE)",null,{"$f":"COUNTA('Cadres de Concertation'!C7:C18)","v":2},null,{"$f":"C91/C90","v":1},{"$f":"C92/C93","v":1}]
["Nombre total des membres présents (Mairie + SDE)",null,{"$f":"SUMIF('Cadres de Concertation'!C7:C18,\"<>\",'Cadres de Concertation'!B7:B18)","v":44}]
["Nombre total des membres attendus (Mairie + SDE)",null,{"$f":"'Cadres de Concertation'!C4*Récapitulatif!C91","v":44}]

{"sheet":"Indicateurs","index":12,"n_rows":45,"n_cols":4,"rows_kept":45,"cut":false,"hidden":true,"merged":[[0,0,14,0],[15,0,25,0],[26,0,30,0],[31,0,39,0],[40,0,44,0]]}
["D1",1,"Taux de realisation des sessions ordinaires du conseil communal",{"$f":"Récapitulatif!C2/4","v":1}]
[null,2,"Taux de services fonctionnels",{"$f":"Récapitulatif!C4/Récapitulatif!C3","v":1}]
[null,3,"Taux de participation des élus aux conseils communaux",{"$f":"Récapitulatif!C6/(Récapitulatif!C5*Récapitulatif!C2)","v":0.86224489795918369}]
[null,4,"Existance d'un manuel de procedure à jour",{"$f":"Récapitulatif!C7","v":0.5}]
[null,5,"Taux de personnes évaluées",{"$f":"Récapitulatif!C8/Récapitulatif!C9","v":0.99190647482014394}]
[null,6,"Taux de commissions permanentes fonctionnelles",{"$f":"((Récapitulatif!C11/Récapitulatif!C10)+(Récapitulatif!C12/CP!AP15)+(Récapitulatif!C14/Récapitulatif!C13))/3","v":0.92028985507246386}]
[null,7,"Taux d'adéquation profil/poste",{"$f":"Récapitulatif!C16/Récapitulatif!C15","v":1}]
[null,8,"Fonctionalité du système de classement et d'archivage",{"$f":"SUM(Récapitulatif!C17:C20)/4","v":1}]
[null,9,"Taux de services publics locaux en gestion déléguée",{"$f":"Récapitulatif!C22/Récapitulatif!C21","v":1}]
[null,10,"Taux de realisation des rapports d'activités du maire",{"$f":"Récapitulatif!C23/Récapitulatif!C24","v":1}]
[null,11,"Taux de tenu des reunions de municipalité",{"$f":"Récapitulatif!C25/Récapitulatif!C26","v":0.58333333333333337}]
[null,12,"Taux moyen de tenue des sessions du conseil d'arrondissement",{"$f":"Récapitulatif!C27/Récapitulatif!C28","v":12.153846153846153}]
[null,13,"Taux moyen de tenue des sessions du conseil de villages",{"$f":"Récapitulatif!C29/Récapitulatif!C30","v":2.2048192771084336}]
[null,14,"Nombre de délégation de signature du maire aux adjoints",{"$f":"Récapitulatif!C31","v":3}]
[null,15,"Nombre de délégation de pouvoir éffectué par le maire",{"$f":"Récapitulatif!C32","v":8}]
["D2",1,"Taux d'éxecution du budget communal",{"$f":"Récapitulatif!C34/Récapitulatif!C33","v":0.5412026300269247}]
[null,2,"Taux d'autofinancement des Investissements",{"$f":"Récapitulatif!C36/Récapitulatif!E37","v":0.86378860900117804}]
[null,3,"Part des Investissements dans les dépenses totales de la commune",{"$f":"Récapitulatif!E37/Récapitulatif!C34","v":0.28506762680500136}]
[null,4,"Part des dépenses d'entretien des équipements et ouvrages dans les depenses de fonctionnement",{"$f":"Récapitulatif!C40/Récapitulatif!C39","v":3.2114819167804697E-2}]
[null,5,"Adoption du budget dans les délais",{"$f":"IF(Tutelle!H3=\"\",0,IF(Tutelle!H3<DATE(Acceuil!P12,1,1),1,0))","v":1}]
[null,6,"Respect du délai de vote du compte administratif",{"$f":"IF(Tutelle!H7=\"\",0,IF(Tutelle!H7<=DATE(Acceuil!P12,6,30),1,0))","v":1}]
[null,7,"Taux d'accroissement des ressources propres",{"$f":"(Récapitulatif!C42-Récapitulatif!C41)/Récapitulatif!C41","v":-7.6034924368236459E-2}]
[null,8,"Taux de recouvrement fiscal",{"$f":"Récapitulatif!C43/Récapitulatif!C35","v":1.0374185714548601}]
[null,9,"délai moyen de passation des marchés publics communaux",{"$f":"Récapitulatif!C50/Récapitulatif!C46","v":2.5450089546611367E-3}]
[null,10,"Existance des plans de passation des marchés validés et publiés",{"$f":"(Récapitulatif!C47+Récapitulatif!D48)/2","v":1}]
[null,11,"Ratio des marchés publics ayant respecté les procédures",{"$f":"Récapitulatif!C49/Récapitulatif!C46","v":1}]
["D3",1,"Affichage des relevés des décisions du Conseil Communal dans les délai",{"$f":"((Récapitulatif!C51/Récapitulatif!C2)+Récapitulatif!C52)/2","v":1}]
[null,2,"Taux de réalisation des seances de reddition de compte",{"$f":"Récapitulatif!C53/Récapitulatif!C54","v":1}]
[null,3,"Nombre d'actions spécifiques en faveur des femmes au cours de l'année",{"$f":"Récapitulatif!C55/Récapitulatif!C56","v":0.16666666666666666}]
[null,4,"Existance d'un mecanisme d'information du public par rapport aux prestations de la commune",{"$f":"(Récapitulatif!C57+Récapitulatif!C58)/2","v":1}]
[null,5,"Nombre de cadre de concertation fonctionnel",{"$f":"(Récapitulatif!D59+Récapitulatif!D60)/2","v":0.75}]
["D4",1,"Existance d'un SDAC",{"$f":"Récapitulatif!C61","v":0}]
[null,2,"Existance d'un PDC",{"$f":"(Récapitulatif!C62+(Récapitulatif!C64/Récapitulatif!C63))/2","v":0.75221460423023845}]
[null,3,"Nombre de reunions de suivi-évaluation du PTA/PAI/PAD",{"$f":"Récapitulatif!C65","v":6}]
[null,4,"Taux d'accroissement des infrastructures économiques et marchandes",{"$f":"(Récapitulatif!C66-Récapitulatif!C67)/Récapitulatif!C67","v":{"$error":"#DIV/0!"}}]
[null,5,"Fonctionalité des organes de gestion fonciere aux niveaux communal et infra communal",{"$f":"((Récapitulatif!C69/Récapitulatif!C68)+(Récapitulatif!C71/Récapitulatif!C70))/2","v":"0"}]
[null,6,"Existance d'un tableau de bord social actualisé",{"$f":"Récapitulatif!C72","v":1}]
[null,7,"Nombre d'accord de cooperation decentralisée mise en œuvre ",{"$f":"(Récapitulatif!C75+Récapitulatif!C76)/2","v":1}]
[null,8,"Taux de paiement des cotisations de la commune à l'intercommunalité",{"$f":"IF(Récapitulatif!C45=0,0,Récapitulatif!C44/Récapitulatif!C45)","v":0.63580309374999999}]
[null,9,"Nombre de contentieux fonciers impliquant la Mairie",{"$f":"Récapitulatif!D77","v":0}]
["D5",1,"Nombre de participations au CDCC",{"$f":"((Récapitulatif!C78/Récapitulatif!C79)+(Récapitulatif!C80/Récapitulatif!C81))/2","v":1}]
[null,2,"Taux de conformité des actes communaux",{"$f":"IF(Récapitulatif!C83=0,0,Récapitulatif!C82/Récapitulatif!C83)","v":1}]
[null,3,"Transmission du budget dans les délais",{"$f":"SUM(Récapitulatif!C84:C86)/3","v":0.66666666666666663}]
[null,4,"Transmission du compte administratif dans les délais",{"$f":"SUM(Récapitulatif!C87:C89)/3","v":1}]
[null,5,"Animation d'un cadre de concertation entre le maire et les services déconcentrés communaux",{"$f":"(Récapitulatif!E91+Récapitulatif!F91)/2","v":1}]